Workbook

Sheet Intro
B1: FERTILIZER ENVIRONMENTAL EXPOSURE (FEE) TOOL
B2: INTRODUCTION
C17: SPERC | D17: Code | E17: Description | F17: Air (%) | G17: Soil (%) | H17: Surface water (%)
C18: 1 | D18: 8e.1.v2 | E18: Outdoor use - direct application of solid fertilizers to soil; surface spreading | F18: 0 | G18: 100 | H18: 0
C19: 2 | D19: 8e.2.v2 | E19: Outdoor use - direct application of solid or liquid fertilizers to soil; incorporation, placement, mixing, seed treatment, drip irrigation | F19: 0 | G19: 100 | H19: 0
C20: 3 | D20: 8e.3.v2 | E20: Outdoor use - application of fertilizers by helicopter | F20: 0 | G20: 100 | H20: 3.32
C21: 4 | D21: 8e.4.v3 | E21: Outdoor use - spray application of liquid fertilizers; soil surface spreading, sprinkler, pivot, foliar spray, slurry | F21: 0 | G21: 100 | H21: =15.7/10 -> 1.57
K25: Name | L25: Formula | M25: CAS nr | N25: EC nr
K26: Copper
K27: Copper chloride | L27: CuCl | M27: 7758-89-6 | N27: 231-842-9
K28: Copper di(acetate) | L28: Cu(CH3COO)2 | M28: 142-71-2, 6046-93-1 | N28: 205-553-3
K29: Copper dichloride | L29: CuCl2 | M29: 7447-39-4, 10125-13-0 | N29: 231-210-2
K30: Copper dihydroxide | L30: Cu(OH)2 | M30: 20427-59-2 | N30: 243-815-9
K31: Copper dinitrate | L31: Cu(NO3)2 | M31: 3251-23-8, 10031-43-3 | N31: 221-838-5
K32: Copper oxide | L32: CuO | M32: 1317-38-0 | N32: 215-269-1
K33: Copper sulphate | L33: CuSO4 | M33: 7758-98-7, 7758-99-8 | N33: 231-847-6
K34: Copper(2+) ion hydroxide nitrate | L34: Cu(OH)(NO3) | M34: 12158-75-7 | N34: 439-590-3
K35: Copper(II) carbonate--copper(II) hydroxide (1:1) | L35: CuCO3-Cu(OH)2 | M35: 12069-69-1 | N35: 235-113-6
K36: Dicopper oxide | L36: Cu2O | M36: 1317-39-1 | N36: 215-270-7
K37: Dicopper chloride trihydroxide | L37: Cu2Cl(OH)3 | M37: 1332-40-7, 1332-65-6 | N37: 215-572-9
K38: Dicopper hydroxide phosphate | L38: Cu2(OH)(PO4) | M38: 12158-74-6 | N38: 235-285-2
K39: Zinc
K40: Zinc bis(dihydrogen phosphate) | L40: Zn(H2PO4)2 | M40: 13598-37-3 | N40: 237-067-2
K41: Trizinc bis(orthophosphate) | L41: Zn3(PO4)2 | M41: 7779-90-0 | N41: 231-944-3
K42: Zinc borate | L42: ZnHBO3 | M42: 1332-07-6 | N42: 215-566-6
K43: Zinc chloride | L43: ZnCl2 | M43: 7646-85-7 | N43: 231-592-0
K44: Zinc hydroxide | L44: Zn(OH)2 | M44: 20427-58-1 | N44: 243-814-3
K45: Zinc nitrate | L45: Zn(NO3)2 | M45: 7779-88-6, 10196-18-6 | N45: 231-943-8
K46: Zinc oxide | L46: ZnO | M46: 1314-13-2, 7440-66-6 | N46: 215-222-5
K47: Zinc sulphate | L47: ZnSO4 | M47: 7446-19-7, 7446-20-0, 7733-02-0 | N47: 231-793-3
K48: Ammonium zinc chloride | L48: Zn(NH4)2Cl4 | M48: 52628-25-8 | N48: 258-054-8
K49: Carbonic acid, zinc salt, basic | L49: Zn(x/2+y).(OH)x.(CO3)y | M49: 51839-25-9 | N49: 257-467-0
K50: Zinc carbonate | L50: ZnCO3 | M50: 3486-35-9 | N50: 222-477-6
K51: Manganese
K52: Manganese sulphate | L52: MnSO4 | M52: 7785-87-7, 10034-96-5 | N52: 232-089-9
B79: Tool developed by ARCHE Consulting
E81: Contact details:
E82: ARCHE Consulting - Koen Oorts
E83: koen.oorts@arche-consulting.be
B85: Version log
B86: Version | C86: Date | D86: Implemented changes | H86: Authors
B87: 1.1 | C87: 2017-09-25 | D87: V1 final first version FEE-tool | H87: Koen Oorts, Sabine Navis
B88: 1.2 | C88: 2019-10-24 | D88: Modifications and bug fixes: Intro - A list of substances for the micronutrients Cu, Zn and Mn covered by the FEE tool has been added Input - The word "Substance" in Step 1 and 3 has been replaced by "Nutrient (element) / co-formulant" - The option for soil incorporation has been added to Step 5 (i.e. ploughing of soil up to 20 cm, within 3 days after application) - The option for runoff reduction (vegetative filter strips) has been included to Step 5 (fixed values of 60% and 80% reduction, based on FOCUS calc) - The macro behind the reset button in the Input sheet is adapted to the changes Output - For calculations of the PEC surface water, the water solubility has been included in the Clocal and PEC local calculations (instead of in the Csurface water conc) - PEC sediment is calculated directly from PEC local surface water, using equilibrium partitioning (concentration averaged over 30 days instead of 365 days) - Max safe application rate for soil is now irrespective of the application rate entered in 'Input' sheet Calculations - Adjustment to calculation of runoff (first order equation, max set to 5%; FOCUS default) - The calculations have been extended to include the option for soil incorporation and runoff RMMs, if selected at Step 5 of Input sheet | H88: Koen Oorts, Sabine Navis
D89: Conc_sw - The calculation period for concentrations in surface water has been extended from 100 to 365 days, to allow for larger time between applications Micro-nutrient endpoints - The PNEC soil and PNEC sediment for manganese have been updated, in line with the REACH registration dossier - A list of substances for the micronutrients Cu, Zn and Mn covered by the FEE tool has been added

Sheet Input
B1: FERTILIZER ENVIRONMENTAL EXPOSURE (FEE) TOOL
B2: INPUT
B3: 1. Nutrient (element) / co-formulant | C3: Copper
B4: 2. Specific Environmental Release Category (SpERC) | C4: SPERC 1: Outdoor use - direct application of solid fertilizers to soil; surface spreading
B5: 3. Single or multiple applications per growing season? | C5: Single
B6: Total annual use rate of nutrient (element) / co-formulant | D6: [kg/ha/year] | E6: =IF(AND(C5="Single",Number_of_applications>1),"ERROR: in case of more than 1 application per growing season select 'Multiple' at Step 3"," ") -> 
B7: =IF(C5="Multiple"," Number of applications","") ->  | D7: =IF(C5="Multiple","-","") ->  | E7: =IF(AND(C5="Single",Number_of_applications>1),"ERROR: in case of single application, leave field empty or enter 1",IF(AND(C5="Multiple",Number_of_applications<2),"ERROR: in case of multiple applications per growing season, value should be >1"," ")) -> 
B8: =IF(C5="Multiple"," Time between applications","") ->  | D8: =IF(C5="Multiple","[days]","") -> 
B9: =IF(C5="Multiple"," Fertilizer use rate per application","") ->  | C9: =IF(Single_Multi="Multiple",APPL_rate_year/Number_of_applications,"") ->  | D9: =IF(C5="Multiple","[kg/ha]","") -> 
B10: 4. Refinement options | D10: =IF(Substance="-> Other","Provide % available for runoff","") ->  | E10: optional if at Step 1 "Other" is selected (if specific data are available)
B11: Crop type | C11: Generic crop
B12: Crop growth stage (BBCH) | C12: Bare soil, BBCH 00-09
B13: European crop yield scenario | C13: Low
B14: Crop concentration | D14: [g/t] | E14: only mandatory if at Step 1 "Other" is selected (enter 0 if unknown); optional if specific data are available
B15: Crop yield | D15: [t/ha] | E15: only mandatory if at Step 1 "Other" is selected (enter 0 if unknown); optional if specific data are available
B16: 5. Risk management measures (RMM) * | D16: [% drift reduction]
D17: soil incorporation | E17: ploughing up to 20 cm, only if within 3 days after application (and if bare soil is indicated at Crop growth stage)
D18: [% runoff reduction] | E18: corresponding to vegetative filter strips of 10-12m and 18-20m resp. (FOCUS, 2007)
B20: * To be justified, and translated into specific RMMs in correspondence with (national) requirements and product labelling
B22: ="Nutrient (element) / co-formulant properties: " & Substance & " **" -> Nutrient (element) / co-formulant properties: Copper ** | C22: Standard parameters | D22: Refined parameters | E22: Unit | F22: Comments
B23: Nutrient (element) / co-formulant | C23: =IF(Substance="-> Other","Enter substance name",Substance) -> Copper | E23: -
B24: Molecular weight | C24: =IF(MOLW_M>0,"",VLOOKUP(Substance,'Micro-nutrient endpoints'!$B$4:$Q$9,3,FALSE)) -> 63.55 | E24: g/mol
B25: Water solubility at 25°C | C25: =IF(SOL_M>0,"",VLOOKUP(Substance,'Micro-nutrient endpoints'!$B$4:$Q$9,4,FALSE)) -> 100 | E25: mg/L | F25: Water solubility; value cannot be 0
B26: Vapour pressure at 25°C | C26: =IF(VP_M>0,"",VLOOKUP(Substance,'Micro-nutrient endpoints'!$B$4:$Q$9,5,FALSE)) -> 1e-06 | E26: Pa | F26: Vapour pressure; value cannot be 0
B27: Henry coefficient | C27: =IF(Henry_M>0,"",VLOOKUP(Substance,'Micro-nutrient endpoints'!$B$4:$Q$9,6,FALSE)) -> 4e-06 | E27: Pa*m3/mol | F27: Henry coefficient; value cannot be 0
B28: Volatilization during application | C28: =IF(Substance="-> Other","Select from dropdown menu",0) -> 0 | D28: Default (inorganics) | E28: % dropdown menu | F28: For organics: % volatilization depending on volatility class selected from dropdown menu
B29: Log octanol-water partition coefficient | E29: - | F29: Not relevant for inorganics
B30: Partition coefficient organic carbon-water (Koc) | E30: L/kg dw | F30: Not relevant for inorganics; if "Other" is selected at Step 1, provide Koc or Kpsoil (value cannot be 0)
B31: Partition coefficient solid-water in soil (Kpsoil) | C31: =IF(Kpsoil_M="",(VLOOKUP(Substance,'Micro-nutrient endpoints'!B4:Q9,7,FALSE)),"") -> 2120 | E31: L/kg dw | F31: Substance specific measured Kpsoil values are used as default input
B32: Partition coefficient solid-water of susp. matter (Kpsusp) | C32: =IF(Kpsusp_M="",(VLOOKUP(Substance,'Micro-nutrient endpoints'!B4:Q9,8,FALSE)),"") -> 30246 | E32: L/kg dw | F32: Substance specific measured Kpsusp values are used as default input
B33: Biodegradability class | C33: =IF(Substance="-> Other","Select from dropdown menu","Not biodegradable") -> Not biodegradable | D33: Not biodegradable | E33: dropdown menu | F33: For organics: select from drop-down menu. For inorganics: default is set to 1000000 days
B34: Half-life biodegradation in soil | C34: =IF(AND(Substance="-> Other",Half_life_soil_M>0),"",DT50_soil) -> 1000000 | E34: days
B35: Half-life biodegradation in surface water | C35: =IF(AND(Substance="-> Other",DT50bio_water_sed_M>0),"",DT50_water) -> 1000000 | E35: days
B36: PEC regional soil | C36: =IF(Substance="-> Other","Provide manual input",(VLOOKUP(Substance,'Micro-nutrient endpoints'!$B$4:$Q$9,9,FALSE))) -> 14 | E36: mg/kg dw | F36: Provide manual input if "Other" is selected at Step 1
B37: PEC regional freshwater | C37: =IF(Substance="-> Other","Provide manual input",(VLOOKUP(Substance,'Micro-nutrient endpoints'!$B$4:$Q$9,10,FALSE))) -> 2.9 | E37: µg/L
B38: PEC regional sediment | C38: =IF(Substance="-> Other","Provide manual input",(VLOOKUP(Substance,'Micro-nutrient endpoints'!$B$4:$Q$9,11,FALSE))) -> 67.5 | E38: mg/kg
B39: PNEC soil | C39: =IF(Substance="-> Other","Provide manual input",(VLOOKUP(Substance,'Micro-nutrient endpoints'!$B$4:$Q$8,13,FALSE))) -> 65 | E39: mg/kg dw | F39: Provide manual input if "Other" is selected at Step 1
B40: PNEC freshwater | C40: =IF(Substance="-> Other","Provide manual input",(VLOOKUP(Substance,'Micro-nutrient endpoints'!$B$4:$Q$8,14,FALSE))) -> 7.8 | E40: µg/L
B41: PNEC sediment | C41: =IF(Substance="-> Other","Provide manual input",(VLOOKUP(Substance,'Micro-nutrient endpoints'!$B$4:$Q$8,15,FALSE))) -> 87 | E41: mg/kg
B42: ** Standard parameters for micro-nutrients are based on information from the REACH dissemination website (unless otherwise stated); please check carefully for consistency with most recent dossier information
B44: ="Scenario information: " &SpERC -> Scenario information: SPERC 1: Outdoor use - direct application of solid fertilizers to soil; surface spreading | C44: Input parameters e-fate model
C45: Default assessment | D45: Refined assessment | E45: Unit | F45: Comments
B46: Fraction available for drift (during application) | C46: =VLOOKUP(SpERC,'Crop parameters'!B4:D38,3,FALSE) -> 0 | D46: =IF(Crop_choice="Generic crop","",IF(SpERC="SPERC 4: Outdoor use - spray application of liquid fertilizers; soil surface spreading, sprinkler, pivot, foliar spray, slurry",VLOOKUP(Crop_choice,'Crop parameters'!B4:D38,3,FALSE),"")) ->  | E46: % | F46: Default: based upon choice of SPERC; refined: based on crop type
B47: Drift refinement, after reduction based on RMM | C47: not considered | D47: =IF(AND(SpERC="SPERC 4: Outdoor use - spray application of liquid fertilizers; soil surface spreading, sprinkler, pivot, foliar spray, slurry",Drift_refined<>"",Drift_M>0),Drift_refined*(1-Drift_M/100),IF(AND(SpERC="SPERC 4: Outdoor use - spray application of liquid fertilizers; soil surface spreading, sprinkler, pivot, foliar spray, slurry",Crop_choice="Generic crop",Drift_M>0),Drift_D*(1-Drift_M/100),IF(AND(SpERC="SPERC 3: Outdoor use - application of fertilizers by helicopter",Drift_M>0),Drift_D*(1-Drift_M/100),""))) ->  | E47: % | F47: Refined assessment only: drift reduction based upon selection RMM
B48: Fraction available for run-off (30 days after application) | C48: =IF(AND(Substance="-> Other",Runoff_M>0),Runoff_M,VLOOKUP(SpERC,'SpERC details'!B5:C8,2,FALSE)) -> 0.03854207782 | D48: =IF(AND(SpERC="SPERC 4: Outdoor use - spray application of liquid fertilizers; soil surface spreading, sprinkler, pivot, foliar spray, slurry",Crop_interception_M<>""),Runoff_D*(1-Crop_interception_M/100),IF(AND(SpERC="SPERC 1: Outdoor use - direct application of solid fertilizers to soil; surface spreading",Crop_interception_M<>""),Runoff_D*(1-Crop_interception_M/100),IF(AND(SpERC="SPERC 3: Outdoor use - application of fertilizers by helicopter",Crop_interception_M<>""),Runoff_D*(1-Crop_interception_M/100),""))) ->  | E48: % | F48: Depending on crop cover (SPERC 3 and 4) or developmental stage (SPERC 1)
B49: Runoff reduction, based on crop type and growth stage | C49: not considered | D49: =IF(Crop_cover="Bare soil, BBCH 00-09","",IF(Crop_choice="Generic crop",VLOOKUP(SpERC,'Crop parameters'!B5:N38,MATCH(Crop_cover,'Crop parameters'!B5:N5,FALSE),FALSE),IF(SpERC="SPERC 4: Outdoor use - spray application of liquid fertilizers; soil surface spreading, sprinkler, pivot, foliar spray, slurry",VLOOKUP(Crop_choice,'Crop parameters'!B5:N38,MATCH(Crop_cover,'Crop parameters'!B5:N5,FALSE),FALSE),VLOOKUP(SpERC,'Crop parameters'!B5:N38,MATCH(Crop_cover,'Crop parameters'!B5:N5,FALSE),FALSE)))) ->  | E49: % | F49: Only for refined assessment: based on selected crop type and growth stage
B50: Runoff reduction based on soil incorporation | C50: not considered | D50: =IF(AND(Crop_cover="Bare soil, BBCH 00-09",Soil_incorp="yes"),VLOOKUP(SpERC,'SpERC details'!B5:D8,3,FALSE),"") ->  | E50: % | F50: Only for refined assessment, if soil incorporation directly after application
B51: Runoff refinement, based on RMM | C51: not considered | D51: =IF(Runoff_RMM="","",IF(AND(Runoff_refined="",Runoff_refined_soil_incorp=""),Runoff_D*(1-Runoff_RMM/100),IF(Runoff_refined="",Runoff_refined_soil_incorp*(1-Runoff_RMM/100),Runoff_refined*(1-Runoff_RMM/100)))) ->  | E51: % | F51: Only for refined assessment: based on selection RMM
B52: Crop elemental concentration | C52: not considered | D52: =IF(Crop_conc_M<>"",Crop_conc_M,IF(Substance="-> Other","Provide manual input in cell C14",IF(Crop_conc_M="",(VLOOKUP(Crop_choice,'Crop parameters'!B5:G38,MATCH(Substance,'Crop parameters'!B5:G5,FALSE),FALSE))))) -> 0 | E52: g substance/t | F52: Based upon literature search for micronutrients, or manual input
B53: Crop yield | C53: not considered | D53: =IF(Crop_yield_M<>"",Crop_yield_M,IF(Substance="-> Other","Provide manual input in cell C15",IF(Crop_yield_M="",VLOOKUP(Crop_choice,'Crop parameters'!B5:J38,MATCH(Crop_quality,'Crop parameters'!B5:J5,FALSE),FALSE)))) -> 0 | E53: t yield/ha | F53: Based on crop specific Eurostat data (European crop yield scenarios) or manual input
B54: Crop offtake | C54: not considered | D54: =IF(OR(Crop_conc_D=0,Crop_yield_D=0), 0,Crop_conc_D/1000*Crop_yield_D) -> 0 | E54: kg substance/ha/y | F54: Calculated from crop element concentration and crop yield scenario
F57: Tool developed by ARCHE Consulting © 2017

Sheet Output
B1: FERTILIZER ENVIRONMENTAL EXPOSURE (FEE) TOOL
B2: OUTPUT
B4: Exposure scenario
B5: Substance | C5: =Substance -> Copper
B6: SpERC | C6: =SpERC -> SPERC 1: Outdoor use - direct application of solid fertilizers to soil; surface spreading
B7: Application rate (total) | C7: =APPL_rate_year & " " & "kg/ha/year" -> kg/ha/year
B8: Number, timing applications | C8: =IF(Single_Multi="Single","1 application",Number_of_applications & " applications, " & Time_between_applications & " days between applications") -> 1 application
B9: Crop type | C9: =Crop_choice -> Generic crop
B10: Crop growth stage | C10: =Crop_cover -> Bare soil, BBCH 00-09
B11: European crop yield scenario | C11: =Crop_quality -> Low
B12: Risk management measures | C12: =IF(Drift_M<>"",Drift_M&"% drift reduction","None") -> None
B14: Emission estimate | C14: [kg/ha] | D14: [%]
B15: Volatilization | C15: =App_eq*Vol_perc/100 -> 0 | D15: =C15/$C$20*100 -> 
B16: Drift | C16: =App_eq*Drift_perc*0.1/100 -> 0 | D16: =C16/$C$20*100 -> 
B17: Runoff | C17: =App_eq*Runoff_perc/100 -> 0 | D17: =C17/$C$20*100 -> 
B18: Crop offtake | C18: =Crop_offtake -> 0 | D18: =C18/$C$20*100 -> 
B19: Soil accumulation | C19: =Input_soil -> 0 | D19: =C19/$C$20*100 -> 
C20: =SUM(C15:C19) -> 0 | D20: =SUM(D15:D19) -> 
C21: Exposure assessment | I21: Effect assessment | K21: Risk characterisation
B22: Environmental compartment | C22: C local year 1 | D22: C local year 10 | E22: PEC regional | F22: PEC total year 1 | G22: PEC total year 10 | H22: Unit | I22: PNEC | J22: Unit | K22: RCR year 1 | L22: RCR year 10
B23: Soil (agricultural) | C23: =(1/(ktotal*time)*Csoil1*(1-EXP(-ktotal*time))) -> 0 | D23: =(1/(ktotal*time)*Csoil10*(1-EXP(-ktotal*time))) -> 0 | E23: =IF(PECreg_soil_M>0,PECreg_soil_M,(VLOOKUP(Substance,'Micro-nutrient endpoints'!$B$4:$Q$9,9,FALSE))) -> 14 | F23: =Csoil_1_30+PEC_regional_soil -> 14 | G23: =Csoil_10_30+PEC_regional_soil -> 14 | H23: mg/kg dw | I23: =IF(Substance="-> Other",PNEC_soil_M,PNEC_soil_D) -> 65 | J23: mg/kg dw | K23: =PECsoil_total_1/PNEC_soil -> 0.2153846154 | L23: =PECsoil_total_10/PNEC_soil -> 0.2153846154 | M23: PEC local calculated as TWA conc in soil for 30 days after application; Eqn R.16-43
B24: Freshwater (dissolved) | C24: =IF((1/(ktotal_water*time)*Csurfacewater1*(1-EXP(-ktotal_water*time)))<(SOL*1000),(1/(ktotal_water*time)*Csurfacewater1*(1-EXP(-ktotal_water*time))),(SOL*1000)) -> 0 | D24: =IF((1/(ktotal_water*time)*Csurfacewater10*(1-EXP(-ktotal_water*time)))<(SOL*1000),(1/(ktotal_water*time)*Csurfacewater10*(1-EXP(-ktotal_water*time))),(SOL*1000)) -> 0 | E24: =IF(PECreg_water_M>0,PECreg_water_M,(VLOOKUP(Substance,'Micro-nutrient endpoints'!$B$4:$Q$9,10,FALSE))) -> 2.9 | F24: =IF(Cwater_1_30+PECregional_water<(SOL*1000),Cwater_1_30+PECregional_water,(SOL*1000)) -> 2.9 | G24: =IF(Cwater_10_30+PECregional_water<(SOL*1000),Cwater_10_30+PECregional_water,(SOL*1000)) -> 2.9 | H24: µg/L | I24: =IF(Substance="-> Other",PNEC_water_M,PNEC_water_D) -> 7.8 | J24: µg/L | K24: =PECwater_total_1/PNEC_water -> 0.3717948718 | L24: =PECwater_total_10/PNEC_water -> 0.3717948718 | M24: PEC local calculated as TWA conc in freshwater for 30 days after application; Eqn R.16-43
B25: Sediment | C25: =((Ksusp_water/RHOsusp)*Cwater_1_30/1000*1000) -> 0 | D25: =((Ksusp_water/RHOsusp)*Cwater_10_30/1000*1000) -> 0 | E25: =IF(PECreg_sed_M>0,PECreg_sed_M,(VLOOKUP(Substance,'Micro-nutrient endpoints'!$B$4:$Q$9,11,FALSE))) -> 67.5 | F25: =Csediment_1_30+PEC_regional_sediment -> 67.5 | G25: =Csediment_10_30+PEC_regional_sediment -> 67.5 | H25: mg/kg | I25: =IF(Substance="-> Other",PNEC_sed_M,PNEC_sed_D) -> 87 | J25: mg/kg | K25: =PECsediment_total_1/PNEC_sediment -> 0.775862069 | L25: =PECsediment_total_10/PNEC_sediment -> 0.775862069 | M25: PEC local based upon conc in surface water, calculated as 30-d TWA; Eqn. R.16-34
B26: Groundwater | F26: =IF((PECsoil_total_1*RHOsoil_wet)/(Ksoil_water*1000)<SOL, (PECsoil_total_1*RHOsoil_wet)/(Ksoil_water*1000),SOL) -> 0.007484950632 | G26: =IF((PECsoil_total_10*RHOsoil_wet)/(Ksoil_water*1000)<SOL, (PECsoil_total_10*RHOsoil_wet)/(Ksoil_water*1000),SOL) -> 0.007484950632 | H26: mg/L | M26: Groundwater conc based upon conc in porewater agricultural soil, max is water solubility; Eqn. R.16-55
B28: Maximum safe application rate calculation
B29: Most sensitive environmental compartment year 1 | C29: =IF(MIN(Calculations!C74:C76)=Max_application_rate_soil_1,"soil",IF(MIN(Calculations!C74:C76)=Max_application_rate_freshwater_1,"freshwater",IF(MIN(Calculations!C74:C76)=Max_application_rate_sediment_1,"sediment"))) -> soil
B30: Most sensitive environmental compartment year 10 | C30: =IF(MIN(Calculations!C77:C79)=Max_application_rate_soil_10,"soil",IF(MIN(Calculations!C77:C79)=Max_application_rate_freshwater_10,"freshwater",IF(MIN(Calculations!C77:C79)=Max_application_rate_sediment_10,"sediment"))) -> soil
B31: Target RCR | C31: 0.9
B32: Estimated max application rate year 1 | C32: =MIN(Calculations!C74:C76) -> 1000 | D32: kg/ha/year
B33: Estimated max application rate year 10 | C33: =MIN(Calculations!C77:C79) -> 1000 | D33: kg/ha/year
J35: Tool developed by ARCHE Consulting © 2017

Sheet Defaults
B1: FERTILIZER ENVIRONMENTAL EXPOSURE (FEE) TOOL
B2: DEFAULTS
B4: Parameters | C4: Value | D4: Unit | E4: Comments
B5: Temperature (TEMP) | C5: 285 | D5: °K | E5: Table R.16-8 (12°C)
B6: Depth (DEPTHsoil) | C6: 0.2 | D6: m | E6: Table R.16-15, agricultural soil
B7: Depth soil runoff (DEPTHsoil_runoff) | C7: 0.02 | D7: m | E7: Worst-case assumption
B8: Depth of the surface water (DEPTHwater) | C8: 0.3 | D8: m | E8: FOCUS Steps 1-2 | F8: Default scenario used: 1 ha field, with surrounding shallow water body 1/10th of field size
B9: Ratio field to water body (RATIO) | C9: 10 | D9: - | E9: FOCUS Steps 1-2
B10: Density solid phase (RHOsolid) | C10: 2500 | D10: kg/m3 | E10: Table R.16-8, general
B11: Density water phase (RHOwater) | C11: 1000 | D11: kg/m3 | E11: Table R.16-8, general
B12: Density air (RHOair) | C12: 1.3 | D12: kg/m3 | E12: Table R.16-8, general
B13: Volume fraction water in soil (Fwater_soil) | C13: 0.2 | D13: - | E13: Table R.16-8, soil
B14: Volume fraction air in soil (Fair_soil) | C14: 0.2 | D14: - | E14: Table R.16-8, soil
B15: Volume fraction solids in soil (Fsolid_soil) | C15: 0.6 | D15: - | E15: Table R.16-8, soil
B16: Weight fraction organic carbon in soil solids (Foc_soil) | C16: 0.02 | D16: - | E16: Table R.16-8, soil
B17: Concentration of suspended matter in water, dry weight (SUSPwater) | C17: 15 | D17: mg/L | E17: Table R.16-8, surface water
B18: Volume fraction solids in suspended matter (Fsolid_susp) | C18: 0.1 | D18: - | E18: Table R.16-8, susp.matter
B19: Volume fraction water in suspended matter (Fwater_susp) | C19: 0.9 | D19: - | E19: Table R.16-8, susp.matter
B20: Weight fraction organic carbon in susp.solids (Foc_susp) | C20: 0.1 | D20: - | E20: Table R.16-8, susp.matter
B21: Volume fraction solids in sediment (Fsolid_sed) | C21: 0.2 | D21: - | E21: Table R.16-8, sediment
B22: Volume fraction water in sediment (Fwater_sed) | C22: 0.8 | D22: - | E22: Table R.16-8, sediment
B23: Weight fraction organic carbon in sediment solids (Foc_sed) | C23: 0.05 | D23: - | E23: Table R.16-8, sediment
B24: Fraction of rainwater that infiltrates into soil (Finf_soil) | C24: 0.25 | D24: - | E24: Table R.16-18
B25: Rate of wet precipitation (RAINrate) | C25: =700/1000/365 -> 0.001917808219 | D25: m/d | E25: Table R.16-18 (avg.annual precipitation 700 mm/y)
B26: RAINrate_sec | C26: =RAINrate/24/3600 -> 2.219685439e-08 | D26: m/s | E26: Conversion rain rate to m/s
B27: Fraction runoff (Frunoff) | C27: 0.25 | D27: - | E27: Simplebox Table 2; volume fraction of precipitation running off
B28: Erosion (erosion) | C28: 9.51e-13 | D28: m/s | E28: Simplebox Table 2; erosion of soils
B29: Residence time of water (time_res) | C29: 40 | D29: d | E29: Table R.16-18
B30: Rate of advective downward transport of soil particles (SOLIDadv.soil) | C30: 6.34e-12 | D30: m/d | E30: Default R.16, pg.146
B31: Solid phase diffusion coefficient in the soil compartment (SOLIDdiff.soil) | C31: 6.37e-12 | D31: m/d | E31: Default R.16, pg.146
B32: Partial mass-transfer coefficient at air side of the air-soil interface (Kasl_air) | C32: =0.00105*60*60*24 -> 90.72 | D32: m/d | E32: Table R.16-19 (1.05E-3 m/sec)
B33: Density wet soil (RHOsoil_wet) | C33: =(Fsolid_soil*RHOsolid)+(Fwater_soil*RHOwater)+(Fair_soil*RHOair) -> 1700.26 | D33: kg/m3 | E33: Default R.16, calculated Eqn R.16-1
B34: Density dry soil (RHOsoil_dry) | C34: =(Fsolid_soil*RHOsolid)+(Fair_soil*RHOair) -> 1500.26 | D34: kg/m3 | E34: Default R.16, calculated Eqn R.16-1
B35: Water content soil | C35: =Fwater_soil/(Fsolid_soil*RHOsolid/1000) -> 0.1333333333 | D35: L/kg dw | E35: Default, calculated
B36: Density suspended matter (RHOsusp) | C36: =(Fsolid_susp*RHOsolid)+(Fwater_susp*RHOwater) -> 1150 | D36: kg/m3 | E36: Default R.16, calculated Eqn R.16-1
B37: Density sediment (RHOsed) | C37: =Fsolid_sed*RHOsolid+Fwater_sed*RHOwater -> 1300 | D37: kg/m3 | E37: Default R.16, calculated Eqn R.16-1
B38: Averaging time for Clocal soil (time) | C38: 30 | D38: d | E38: Default R.16, pg. 62, 127
B39: Averaging time for crop uptake (timecrops) | C39: 180 | D39: d | E39: Default R.16, pg. 62, 127
E42: Tool developed by ARCHE Consulting © 2017

Sheet Calculations
B1: FERTILIZER ENVIRONMENTAL EXPOSURE (FEE) TOOL
B2: CALCULATIONS
B4: System properties | C4: Value | D4: Unit | E4: Comments
B5: Water solubility at 25°C | C5: =IF(SOL_M>0,SOL_M,SOL_D) -> 100 | D5: mg/L | E5: Select from input sheet
B6: Henry coefficient (Henry) | C6: =IF(Henry_M>0,Henry_M,IF(Henry_D=0.000004,0.000004,IF(AND(MOLW_M>0,SOL_M>0,VP_M>0),(VP_M*MOLW_M/SOL_M)))) -> 4e-06 | D6: Pa*m3/mol | E6: Eqn R.16-4; calculated from mol.weight, solubility and vapour pressure if no Henry coefficient is provided
B7: Partition coefficient solid-water in soil (Kpsoil) | C7: =IF(Kpsoil_M>0,Kpsoil_M,IF(AND(Substance="-> Other",Koc_M>0),(Koc_M*Foc_soil),Kpsoil_D)) -> 2120 | D7: L/kg | E7: Eqn R.16-6; calculated from Koc if no manual/default Kpsoil input data is provided
B8: Kpsoil (Kpsoil_category) | C8: =IF(Kpsoil<=100,Biodegradation!C7,IF(Kpsoil<=1000,Biodegradation!C8,IF(Kpsoil<=10000,Biodegradation!C9,IF(Kpsoil<=100000,Biodegradation!C10)))) -> Kp 1000 - 10000 | E8: Category selected based on data in Kpsoil
B9: Biodegradation in soil (DT50soil_category) | C9: =IF(Substance="-> Other",DT50_bio_soil_M,DT50_bio_soil_D) -> Not biodegradable | E9: Select from input sheet
B10: Biodegradation in soil (DT50_soil) | C10: =IF(AND(Substance="-> Other",Half_life_soil_M>0),Half_life_soil_M,IF(AND(Substance="-> Other",Kpsoil_M=0),"Provide manual input (DT50 or Kpsoil)",VLOOKUP(Kpsoil_category,Biodegradation!C6:G10,MATCH(DT50soil_category,Biodegradation!C6:G6,FALSE),FALSE))) -> 1000000 | D10: days | E10: Lookup table
B11: Biodegradation in water (DT50_water) | C11: =IF(AND(Substance="-> Other",DT50bio_water_sed_M>0),DT50bio_water_sed_M,IF(Substance="-> Other","Provide manual input",VLOOKUP(Biodegradation!C11,Biodegradation!C6:G11,MATCH(DT50soil_category,Biodegradation!C6:G6,FALSE),FALSE))) -> 1000000 | D11: days | E11: Lookup table
B12: Partition coefficient solid-water of susp. matter (Kpsusp) | C12: =IF(Kpsusp_M>0,Kpsusp_M,IF(AND(Substance="-> Other",Koc_M>0),(Koc_M*Foc_susp),Kpsusp_D)) -> 30246 | D12: L/kg | E12: Eqn R.16-6; calculated from Koc if no manual/default Kpsusp input data is provided
B13: Kair_water | C13: =Henry/8.314/TEMP -> 1.688126981e-09 | D13: - | E13: Eqn R.16-5
B14: Ksoil_water | C14: =Fair_soil*Kair_water+Fwater_soil+Fsolid_soil*Kpsoil/1000*RHOsolid -> 3180.2 | D14: m3/m3 | E14: Eqn R.16-7
B15: Ksusp_water | C15: =Fwater_susp+Fsolid_susp*Kpsusp/1000*RHOsolid -> 7562.4 | D15: m3/m3 | E15: Eqn R.16-7
B16: Partial mass-transfer coefficient at soil side of the air-soil interface (Kasl_soil) | C16: =Veff_soil+Deff_soil/dp -> 1.508267588e-07 | D16: m/d | E16: Eqn R.16-67
B17: Substance dependent penetration depth (dp) | C17: =(Veff_soil+SQRT(POWER(Veff_soil,2)+Deff_soil*4*kbio_soil))/(2*kbio_soil) -> 0.217597017 | D17: m | E17: Eqn R.16-68
B18: Effective advection (with penetrating pore water)(Veff_soil) | C18: =FRw.soil*(RAINrate*Finf_soil/Fwater_soil)+FRs.soil*(SOLIDadv.soil/Fsolid_soil) -> 1.507721706e-07 | D18: m | E18: Eqn R.16-69
B19: Effective diffusion coefficient (Deff_soil) | C19: =FRa.soil*(DIFFgas*POWER(Fair_soil,1.5)/Fair_soil)+FRw.soil*(DIFFwater*POWER(Fwater_soil,1.5)/Fwater_soil)+FRs.soil*(SOLIDdiff.soil/Fsolid_soil) -> 1.18782474e-11 | D19: m2/d | E19: Eqn R.16-70
B20: Mass fraction of the substance in the water phase of soil (FRw.soil) | C20: =Fwater_soil/(Fair_soil*Kair_water+Fwater_soil+Fsolid_soil*Kpsoil*RHOsolid/1000) -> 6.288912647e-05 | D20: - | E20: Eqn R.16-71
B21: Mass fraction of the substance in the solid phase of soil (FRs.soil) | C21: =Fsolid_soil/(Fair_soil*Kair_water/(Kpsoil*RHOsolid/1000)+Fwater_soil/(Kpsoil*RHOsolid/1000)+Fsolid_soil) -> 0.9999371109 | D21: - | E21: Eqn R.16-72
B22: Mass fraction of the substance in the air phase of soil (Fra.soil) | C22: =1-FRw.soil-FRs.soil -> 1.061373212e-13 | D22: - | E22: Eqn R.16-73
B23: Molecular diffusivity of the substance in the gas phase (DIFFgas) | C23: =IF(MOLW_M>0,(0.0000257*SQRT(18/(MOLW_M/1000))),(0.0000257*SQRT(18/(MOLW_D/1000)))) -> 0.0004325253821 | D23: m2/d | E23: Eqn R.16-74
B24: Molecular diffusivity of the substance in the water phase (DIFFwater) | C24: =IF(MOLW_M>0,(0.000000002*SQRT(32/(MOLW_M/1000))),(0.000000002*SQRT(32/(MOLW_D/1000)))) -> 4.487941708e-08 | D24: m2/d | E24: Eqn R.16-75
B26: Crop metal concentration | C26: =IF(Crop_conc_M<>"",Crop_conc_M,Crop_conc_D) -> 0 | D26: g/t | E26: Select from input sheet
B27: Crop yield | C27: =IF(Crop_yield_M<>"",Crop_yield_M,Crop_yield_D) -> 0 | D27: t/ha/y | E27: Select from input sheet
B28: Crop offtake | C28: =(Metal_conc*0.001)*Yield -> 0 | D28: kg/ha/y
B29: Pseudo-first order rate constant for volatilisation from soil (kvolat) | C29: =1/(((1/(Kasl_air*Kair_water/Ksoil_water))+(1/Kasl_soil))*DEPTHsoil) -> 2.407049842e-10 | D29: 1/d | E29: Eqn R.16-45
B30: Pseudo-first order rate constant for leaching from top soil (kleach) | C30: =Finf_soil*RAINrate/(Ksoil_water*DEPTHsoil) -> 7.538080228e-07 | D30: 1/d | E30: Eqn R.16-46
B31: Pseudo-first order rate constant for biodegradation in soil (kbio_soil) | C31: =LN(2)/DT50_soil -> 6.931471806e-07 | D31: 1/d | E31: Eqn R.16-13
B32: First order rate constant for removal from top soil (ktotal) | C32: =kvolat+kleach+kbio_soil -> 1.447195908e-06 | D32: 1/d | E32: Eqn R.16-44
B33: Factor_1 removal soil within year 1 (F_1) | C33: =IF(Number_of_applications>1,1-EXP(-Number_of_applications*Time_between_applications*ktotal),1) -> 1 | D33: 1/d | E33: Focus Steps 1-2 calc
B34: Factor_2 removal soil within year 1 (F_2) | C34: =IF(Number_of_applications>1,1-EXP(-Time_between_applications*ktotal),1) -> 1 | D34: 1/d | E34: Focus Steps 1-2 calc
B35: Fraction accumulation in soil in one year (Facc) | C35: =EXP(-365*ktotal) -> 0.999471913 | D35: - | E35: Eqn R.16-49
B36: Correction factor runoff (Corr_runoff) | C36: =(DEPTHsoil_runoff/0.1)/(1-EXP(-DEPTHsoil_runoff/0.1)) -> 1.103331113 | D36: - | E36: Simplebox Eqn 111
B37: Correction factor runoff_incorp (Corr_runoff_incorp) | C37: =(DEPTHsoil/0.1)/(1-EXP(-DEPTHsoil/0.1)) -> 2.313035285 | E37: Simplebox Eqn 111
B38: Correction factor runoff/depth (Corr_runoff_depth) | C38: =Corr_runoff/DEPTHsoil_runoff -> 55.16655566 | D38: - | E38: Simplebox Eqn 112
B39: Correction factor runoff/depth (Corr_runoff_depth_soil_incorp) | C39: =Corr_runoff_incorp/DEPTHsoil -> 11.56517643 | D39: - | E39: Simplebox Eqn 112
B40: Ksoil_water_runoff | C40: =(((RAINrate_sec*Frunoff/Ksoil_water)+erosion)*Corr_runoff_depth)*3600*24 -> 1.284983573e-05 | D40: 1/d | E40: Simplebox Eqn 112
B41: Ksoil_water_runoff_soil_incorp | C41: =(((RAINrate_sec*Frunoff/Ksoil_water)+erosion)*Corr_runoff_depth_soil_incorp)*3600*24 -> 2.693853468e-06 | D41: 1/d | E41: Simplebox Eqn 112
B42: Rate constant for removal from water-sediment phase (kbio_water_sed) | C42: =IF(Substance="-> Other",(LN(2)/DT50bio_water_sed_M),(LN(2)/1000000)) -> 6.931471806e-07 | D42: 1/d | E42: Modified Eqn R.16-13
B43: Rate constant for residence time in water body (kres) | C43: =1/time_res -> 0.025 | D43: 1/d
B44: First order rate constant for removal from water phase (ktotal_water) | C44: =kbio_water_sed+kdill -> 0.02500069315 | D44: 1/d | E44: Modified Eqn R.16-44
B45: Fraction accumulation in water_sediment in one year (Facc_water_sed) | C45: =EXP(-365*ktotal_water) -> 0.0001088812196 | D45: - | E45: Modified Eqn R.16-49
B47: Equivalent application rate, single (App_eq) | C47: =IF(Single_Multi="Multiple",APPL_rate,APPL_rate_year) -> 0 | D47: kg/ha | E47: Application rate of element/substance in fertilizer, per application
B48: Runoff percentage related to soil residue (Runoff_perc) | C48: =IF(Runoff_refined_RMM<>"",Runoff_refined_RMM,IF(Runoff_refined_soil_incorp<>"",Runoff_refined_soil_incorp,IF(Runoff_refined<>"",Runoff_refined,Runoff_D))) -> 0.03854207782 | D48: % | E48: Select from input sheet including runoff reduction if applicable
B49: Crop interception fraction (Fcrop_int) | C49: =IF(Crop_interception_M="",0,Crop_interception_M/100) -> 0 | D49: - | E49: Select from input sheet
B50: Drift percentage (Drift_perc) | C50: =IF(Drift_RMM<>"",Drift_RMM,IF(Drift_refined="",Drift_D,Drift_refined)) -> 0 | D50: % | E50: Select from input sheet
B51: Volatilization percentage (Vol_perc) | C51: =IF(Substance="-> Other",VLOOKUP(Vol_M,'SpERC details'!F4:G10,2,FALSE),Vol_D) -> 0 | D51: % | E51: Select from input sheet or lookup table
B52: Equivalent application rate to soil, all applications (App_eq_soil) | C52: =App_eq*(F_1/F_2) -> 0 | D52: kg/ha | E52: App_eq_soil = App_eq, corrected for removal from soil between applications
B53: Final input to soil, all applications (App_soil) | C53: =App_eq*((100-Runoff_perc)/100)*(F_1/F_2) -> 0 | D53: kg/ha | E53: App_soil = App_eq - runoff, corrected for runoff and removal from soil between applications
B54: Total input to soil, taking into account crop offtake (Input_soil) | C54: =IF(App_soil-Crop_offtake>0,App_soil-Crop_offtake,0) -> 0 | D54: kg/ha
B56: Concentration in soil after 1st year application excluding crop offtake (Csoil1_no offtake) | C56: =(App_soil*100)/(DEPTHsoil*RHOsoil_dry) -> 0 | D56: mg/kg dw | E56: Similar to Eqn R.16-48
B57: Concentration in soil after 1st year application including crop offtake (Csoil1) | C57: =(Input_soil*100)/(DEPTHsoil*RHOsoil_dry) -> 0 | D57: mg/kg dw | E57: Similar to Eqn R.16-48
B58: Concentration in surface water after 1st year application (Csurfacewater1) | C58: =MAX(Conc_sw!L6:L106) -> 0 | D58: µg/L | E58: Modified Eqn R.16-29
B60: Concentration in soil after 10 years (Csoil10_no offtake) | C60: =Csoil1_no_offtake*(1+POWER(Facc,1)+POWER(Facc,2)+POWER(Facc,3)+POWER(Facc,4)+POWER(Facc,5)+POWER(Facc,6)+POWER(Facc,7)+POWER(Facc,8)+POWER(Facc,9)) -> 0 | D60: mg/kg dw | E60: Eqn R.16-50
B61: Concentration in soil after 10 years (Csoil10) | C61: =Csoil1*(1+POWER(Facc,1)+POWER(Facc,2)+POWER(Facc,3)+POWER(Facc,4)+POWER(Facc,5)+POWER(Facc,6)+POWER(Facc,7)+POWER(Facc,8)+POWER(Facc,9)) -> 0 | D61: mg/kg dw | E61: Eqn R.16-50
B62: Concentration in surface water after 10th application (Csurfacewater10) | C62: =Csurfacewater1*(1+POWER(Facc_water_sed,1)+POWER(Facc_water_sed,2)+POWER(Facc_water_sed,3)+POWER(Facc_water_sed,4)+POWER(Facc_water_sed,5)+POWER(Facc_water_sed,6)+POWER(Facc_water_sed,7)+POWER(Facc_water_sed,8)+POWER(Facc_water_sed,9)) -> 0 | D62: µg/L | E62: Modified Eqn R.16-50
B64: RCR regional soil | C64: =PEC_regional_soil/PNEC_soil -> 0.2153846154 | D64: - | E64: Select from output sheet
B65: RCR regional freshwater | C65: =PECregional_water/PNEC_water -> 0.3717948718 | D65: - | E65: Select from output sheet
B66: RCR regional sediment | C66: =PEC_regional_sediment/PNEC_sediment -> 0.775862069 | D66: - | E66: Select from output sheet
B67: RCR crop offtake | C67: =IF(Crop_offtake<>0,((Crop_offtake*100)/(DEPTHsoil*RHOsoil_dry))/PNEC_soil,"") -> 
B68: Target RCR local soil | C68: =IF(Crop_offtake<>0,Target_RCR-RCR_regional_soil+RCR_crop_offtake,Target_RCR-RCR_regional_soil) -> 0.6846153846 | D68: -
B69: Target RCR local freshwater | C69: =Target_RCR-RCR_regional_freshwater -> 0.5282051282 | D69: -
B70: Target RCR local sediment | C70: =Target_RCR-RCR_regional_sediment -> 0.124137931 | D70: -
B71: Max Clocal soil | C71: =PNEC_soil*Target_RCR_local_soil -> 44.5 | D71: mg/kg dw
B72: Max Clocal freshwater | C72: =PNEC_water*Target_RCR_local_freshwater -> 4.12 | D72: µg/L
B73: Max Clocal sediment | C73: =PNEC_sediment*Target_RCR_local_sediment -> 10.8 | D73: mg/kg
B74: Max application rate soil 1 year | C74: =IF(Csoil_1_30>0,APPL_rate_year*(Max_Clocal_soil/(1/(ktotal*time)*Csoil1_no_offtake*(1-EXP(-ktotal*time)))),1000) -> 1000 | D74: kg/ha/year
B75: Max application rate freshwater 1 year | C75: =IF(Cwater_1_30>0,APPL_rate_year*(Max_Clocal_freshwater/Cwater_1_30),1000) -> 1000 | D75: kg/ha/year
B76: Max application rate sediment 1 year | C76: =IF(Csediment_1_30>0,APPL_rate_year*(Max_Clocal_sediment/Csediment_1_30),1000) -> 1000 | D76: kg/ha/year
B77: Max application rate soil 10 year | C77: =IF(Csoil_10_30>0,APPL_rate_year*(Max_Clocal_soil/(1/(ktotal*time)*Csoil10_no_offtake*(1-EXP(-ktotal*time)))),1000) -> 1000 | D77: kg/ha/year, 10 years
B78: Max application rate freshwater 10 year | C78: =IF(Cwater_10_30>0,APPL_rate_year*(Max_Clocal_freshwater/Cwater_10_30),1000) -> 1000 | D78: kg/ha/year, 10 years
B79: Max application rate sediment 10 year | C79: =IF(Csediment_10_30>0,APPL_rate_year*(Max_Clocal_sediment/Csediment_10_30),1000) -> 1000 | D79: kg/ha/year, 10 years
E82: Tool developed by ARCHE Consulting © 2017

Sheet Conc_sw (hidden)
B1: FERTILIZER ENVIRONMENTAL EXPOSURE (FEE) TOOL
B2: EXPOSURE SURFACE WATER
B4: Input parameters | G4: Conc surface water calculations
B5: Input runoff [mg/m2] | C5: Input drift [mg/m2] | D5: Total input [µg/L] | E5: Csurface water [µg/L] | G5: Day no | H5: Input runoff [mg/m2] | I5: Input drift [mg/m2] | J5: Total input [µg/L] | K5: Total input incl removal [µg/L] | L5: Csurface water [µg/L]
B6: =App_eq_soil*Runoff_perc*RATIO -> 0 | C6: =App_eq*Drift_perc -> 0 | D6: =(Input_runoff+Input_drift)/DEPTHwater -> 0 | E6: =IF((Input_sw)/(1+Kpsusp*SUSPwater*0.000001)<(SOL*1000),(Input_sw)/(1+Kpsusp*SUSPwater*0.000001),(SOL*1000)) -> 0 | G6: 0 | H6: =IF(G6=((Time_between_applications*(Number_of_applications-1))+4),Input_runoff,0) -> 0 | I6: =Input_drift -> 0 | J6: =(H6+I6)/DEPTHwater -> 0 | K6: =J6*EXP(-ktotal_water*G6) -> 0 | L6: =(K6)/(1+Kpsusp*SUSPwater*0.000001) -> 0
G7: 1 | H7: 0 | I7: =IF(Single_Multi="Single",0,IF(AND(MOD(G7/Time_between_applications,1)=0,OR((Conc_sw!G7<Conc_sw!$C$10),(Conc_sw!G7=Conc_sw!$C$10))),Input_drift,0)) -> 0 | J7: 0 | K7: =(J7+K6)*EXP(-ktotal_water*$G$7) -> 0 | L7: 0
G8: 2 | H8: 0 | I8: =IF(Single_Multi="Single",0,IF(AND(MOD(G8/Time_between_applications,1)=0,OR((Conc_sw!G8<Conc_sw!$C$10),(Conc_sw!G8=Conc_sw!$C$10))),Input_drift,0)) -> 0 | J8: 0 | K8: 0 | L8: 0
G9: 3 | H9: 0 | I9: =IF(Single_Multi="Single",0,IF(AND(MOD(G9/Time_between_applications,1)=0,OR((Conc_sw!G9<Conc_sw!$C$10),(Conc_sw!G9=Conc_sw!$C$10))),Input_drift,0)) -> 0 | J9: 0 | K9: 0 | L9: 0
B10: Maximum days | C10: =Time_between_applications*(Number_of_applications-1) -> 0 | G10: 4 | H10: 0 | I10: =IF(Single_Multi="Single",0,IF(AND(MOD(G10/Time_between_applications,1)=0,OR((Conc_sw!G10<Conc_sw!$C$10),(Conc_sw!G10=Conc_sw!$C$10))),Input_drift,0)) -> 0 | J10: 0 | K10: 0 | L10: 0
G11: 5 | H11: 0 | I11: =IF(Single_Multi="Single",0,IF(AND(MOD(G11/Time_between_applications,1)=0,OR((Conc_sw!G11<Conc_sw!$C$10),(Conc_sw!G11=Conc_sw!$C$10))),Input_drift,0)) -> 0 | J11: 0 | K11: 0 | L11: 0
G12: 6 | H12: 0 | I12: =IF(Single_Multi="Single",0,IF(AND(MOD(G12/Time_between_applications,1)=0,OR((Conc_sw!G12<Conc_sw!$C$10),(Conc_sw!G12=Conc_sw!$C$10))),Input_drift,0)) -> 0 | J12: 0 | K12: 0 | L12: 0
G13: 7 | H13: 0 | I13: =IF(Single_Multi="Single",0,IF(AND(MOD(G13/Time_between_applications,1)=0,OR((Conc_sw!G13<Conc_sw!$C$10),(Conc_sw!G13=Conc_sw!$C$10))),Input_drift,0)) -> 0 | J13: 0 | K13: 0 | L13: 0
G14: 8 | H14: 0 | I14: =IF(Single_Multi="Single",0,IF(AND(MOD(G14/Time_between_applications,1)=0,OR((Conc_sw!G14<Conc_sw!$C$10),(Conc_sw!G14=Conc_sw!$C$10))),Input_drift,0)) -> 0 | J14: 0 | K14: 0 | L14: 0
G15: 9 | H15: 0 | I15: =IF(Single_Multi="Single",0,IF(AND(MOD(G15/Time_between_applications,1)=0,OR((Conc_sw!G15<Conc_sw!$C$10),(Conc_sw!G15=Conc_sw!$C$10))),Input_drift,0)) -> 0 | J15: 0 | K15: 0 | L15: 0
G16: 10 | H16: 0 | I16: =IF(Single_Multi="Single",0,IF(AND(MOD(G16/Time_between_applications,1)=0,OR((Conc_sw!G16<Conc_sw!$C$10),(Conc_sw!G16=Conc_sw!$C$10))),Input_drift,0)) -> 0 | J16: 0 | K16: 0 | L16: 0
G17: 11 | H17: 0 | I17: =IF(Single_Multi="Single",0,IF(AND(MOD(G17/Time_between_applications,1)=0,OR((Conc_sw!G17<Conc_sw!$C$10),(Conc_sw!G17=Conc_sw!$C$10))),Input_drift,0)) -> 0 | J17: 0 | K17: 0 | L17: 0
G18: 12 | H18: 0 | I18: =IF(Single_Multi="Single",0,IF(AND(MOD(G18/Time_between_applications,1)=0,OR((Conc_sw!G18<Conc_sw!$C$10),(Conc_sw!G18=Conc_sw!$C$10))),Input_drift,0)) -> 0 | J18: 0 | K18: 0 | L18: 0
G19: 13 | H19: 0 | I19: =IF(Single_Multi="Single",0,IF(AND(MOD(G19/Time_between_applications,1)=0,OR((Conc_sw!G19<Conc_sw!$C$10),(Conc_sw!G19=Conc_sw!$C$10))),Input_drift,0)) -> 0 | J19: 0 | K19: 0 | L19: 0
G20: 14 | H20: 0 | I20: =IF(Single_Multi="Single",0,IF(AND(MOD(G20/Time_between_applications,1)=0,OR((Conc_sw!G20<Conc_sw!$C$10),(Conc_sw!G20=Conc_sw!$C$10))),Input_drift,0)) -> 0 | J20: 0 | K20: 0 | L20: 0
G21: 15 | H21: 0 | I21: =IF(Single_Multi="Single",0,IF(AND(MOD(G21/Time_between_applications,1)=0,OR((Conc_sw!G21<Conc_sw!$C$10),(Conc_sw!G21=Conc_sw!$C$10))),Input_drift,0)) -> 0 | J21: 0 | K21: 0 | L21: 0
G22: 16 | H22: 0 | I22: =IF(Single_Multi="Single",0,IF(AND(MOD(G22/Time_between_applications,1)=0,OR((Conc_sw!G22<Conc_sw!$C$10),(Conc_sw!G22=Conc_sw!$C$10))),Input_drift,0)) -> 0 | J22: 0 | K22: 0 | L22: 0
G23: 17 | H23: 0 | I23: =IF(Single_Multi="Single",0,IF(AND(MOD(G23/Time_between_applications,1)=0,OR((Conc_sw!G23<Conc_sw!$C$10),(Conc_sw!G23=Conc_sw!$C$10))),Input_drift,0)) -> 0 | J23: 0 | K23: 0 | L23: 0
G24: 18 | H24: 0 | I24: =IF(Single_Multi="Single",0,IF(AND(MOD(G24/Time_between_applications,1)=0,OR((Conc_sw!G24<Conc_sw!$C$10),(Conc_sw!G24=Conc_sw!$C$10))),Input_drift,0)) -> 0 | J24: 0 | K24: 0 | L24: 0
G25: 19 | H25: 0 | I25: =IF(Single_Multi="Single",0,IF(AND(MOD(G25/Time_between_applications,1)=0,OR((Conc_sw!G25<Conc_sw!$C$10),(Conc_sw!G25=Conc_sw!$C$10))),Input_drift,0)) -> 0 | J25: 0 | K25: 0 | L25: 0
G26: 20 | H26: 0 | I26: =IF(Single_Multi="Single",0,IF(AND(MOD(G26/Time_between_applications,1)=0,OR((Conc_sw!G26<Conc_sw!$C$10),(Conc_sw!G26=Conc_sw!$C$10))),Input_drift,0)) -> 0 | J26: 0 | K26: 0 | L26: 0
G27: 21 | H27: 0 | I27: =IF(Single_Multi="Single",0,IF(AND(MOD(G27/Time_between_applications,1)=0,OR((Conc_sw!G27<Conc_sw!$C$10),(Conc_sw!G27=Conc_sw!$C$10))),Input_drift,0)) -> 0 | J27: 0 | K27: 0 | L27: 0
G28: 22 | H28: 0 | I28: =IF(Single_Multi="Single",0,IF(AND(MOD(G28/Time_between_applications,1)=0,OR((Conc_sw!G28<Conc_sw!$C$10),(Conc_sw!G28=Conc_sw!$C$10))),Input_drift,0)) -> 0 | J28: 0 | K28: 0 | L28: 0
G29: 23 | H29: 0 | I29: =IF(Single_Multi="Single",0,IF(AND(MOD(G29/Time_between_applications,1)=0,OR((Conc_sw!G29<Conc_sw!$C$10),(Conc_sw!G29=Conc_sw!$C$10))),Input_drift,0)) -> 0 | J29: 0 | K29: 0 | L29: 0
G30: 24 | H30: 0 | I30: =IF(Single_Multi="Single",0,IF(AND(MOD(G30/Time_between_applications,1)=0,OR((Conc_sw!G30<Conc_sw!$C$10),(Conc_sw!G30=Conc_sw!$C$10))),Input_drift,0)) -> 0 | J30: 0 | K30: 0 | L30: 0
G31: 25 | H31: 0 | I31: =IF(Single_Multi="Single",0,IF(AND(MOD(G31/Time_between_applications,1)=0,OR((Conc_sw!G31<Conc_sw!$C$10),(Conc_sw!G31=Conc_sw!$C$10))),Input_drift,0)) -> 0 | J31: 0 | K31: 0 | L31: 0
G32: 26 | H32: 0 | I32: =IF(Single_Multi="Single",0,IF(AND(MOD(G32/Time_between_applications,1)=0,OR((Conc_sw!G32<Conc_sw!$C$10),(Conc_sw!G32=Conc_sw!$C$10))),Input_drift,0)) -> 0 | J32: 0 | K32: 0 | L32: 0
G33: 27 | H33: 0 | I33: =IF(Single_Multi="Single",0,IF(AND(MOD(G33/Time_between_applications,1)=0,OR((Conc_sw!G33<Conc_sw!$C$10),(Conc_sw!G33=Conc_sw!$C$10))),Input_drift,0)) -> 0 | J33: 0 | K33: 0 | L33: 0
G34: 28 | H34: 0 | I34: =IF(Single_Multi="Single",0,IF(AND(MOD(G34/Time_between_applications,1)=0,OR((Conc_sw!G34<Conc_sw!$C$10),(Conc_sw!G34=Conc_sw!$C$10))),Input_drift,0)) -> 0 | J34: 0 | K34: 0 | L34: 0
G35: 29 | H35: 0 | I35: =IF(Single_Multi="Single",0,IF(AND(MOD(G35/Time_between_applications,1)=0,OR((Conc_sw!G35<Conc_sw!$C$10),(Conc_sw!G35=Conc_sw!$C$10))),Input_drift,0)) -> 0 | J35: 0 | K35: 0 | L35: 0
G36: 30 | H36: 0 | I36: =IF(Single_Multi="Single",0,IF(AND(MOD(G36/Time_between_applications,1)=0,OR((Conc_sw!G36<Conc_sw!$C$10),(Conc_sw!G36=Conc_sw!$C$10))),Input_drift,0)) -> 0 | J36: 0 | K36: 0 | L36: 0
G37: 31 | H37: 0 | I37: =IF(Single_Multi="Single",0,IF(AND(MOD(G37/Time_between_applications,1)=0,OR((Conc_sw!G37<Conc_sw!$C$10),(Conc_sw!G37=Conc_sw!$C$10))),Input_drift,0)) -> 0 | J37: 0 | K37: 0 | L37: 0
G38: 32 | H38: =IF(G38=((Time_between_applications*(Number_of_applications-1))+4),Input_runoff,0) -> 0 | I38: =IF(Single_Multi="Single",0,IF(AND(MOD(G38/Time_between_applications,1)=0,OR((Conc_sw!G38<Conc_sw!$C$10),(Conc_sw!G38=Conc_sw!$C$10))),Input_drift,0)) -> 0 | J38: =(H38+I38)/DEPTHwater -> 0 | K38: 0 | L38: =(K38)/(1+Kpsusp*SUSPwater*0.000001) -> 0
G39: 33 | H39: 0 | I39: =IF(Single_Multi="Single",0,IF(AND(MOD(G39/Time_between_applications,1)=0,OR((Conc_sw!G39<Conc_sw!$C$10),(Conc_sw!G39=Conc_sw!$C$10))),Input_drift,0)) -> 0 | J39: 0 | K39: =(J39+K38)*EXP(-ktotal_water*$G$7) -> 0 | L39: 0
G40: 34 | H40: 0 | I40: =IF(Single_Multi="Single",0,IF(AND(MOD(G40/Time_between_applications,1)=0,OR((Conc_sw!G40<Conc_sw!$C$10),(Conc_sw!G40=Conc_sw!$C$10))),Input_drift,0)) -> 0 | J40: 0 | K40: 0 | L40: 0
G41: 35 | H41: 0 | I41: =IF(Single_Multi="Single",0,IF(AND(MOD(G41/Time_between_applications,1)=0,OR((Conc_sw!G41<Conc_sw!$C$10),(Conc_sw!G41=Conc_sw!$C$10))),Input_drift,0)) -> 0 | J41: 0 | K41: 0 | L41: 0
G42: 36 | H42: 0 | I42: =IF(Single_Multi="Single",0,IF(AND(MOD(G42/Time_between_applications,1)=0,OR((Conc_sw!G42<Conc_sw!$C$10),(Conc_sw!G42=Conc_sw!$C$10))),Input_drift,0)) -> 0 | J42: 0 | K42: 0 | L42: 0
G43: 37 | H43: 0 | I43: =IF(Single_Multi="Single",0,IF(AND(MOD(G43/Time_between_applications,1)=0,OR((Conc_sw!G43<Conc_sw!$C$10),(Conc_sw!G43=Conc_sw!$C$10))),Input_drift,0)) -> 0 | J43: 0 | K43: 0 | L43: 0
G44: 38 | H44: 0 | I44: =IF(Single_Multi="Single",0,IF(AND(MOD(G44/Time_between_applications,1)=0,OR((Conc_sw!G44<Conc_sw!$C$10),(Conc_sw!G44=Conc_sw!$C$10))),Input_drift,0)) -> 0 | J44: 0 | K44: 0 | L44: 0
G45: 39 | H45: 0 | I45: =IF(Single_Multi="Single",0,IF(AND(MOD(G45/Time_between_applications,1)=0,OR((Conc_sw!G45<Conc_sw!$C$10),(Conc_sw!G45=Conc_sw!$C$10))),Input_drift,0)) -> 0 | J45: 0 | K45: 0 | L45: 0
G46: 40 | H46: 0 | I46: =IF(Single_Multi="Single",0,IF(AND(MOD(G46/Time_between_applications,1)=0,OR((Conc_sw!G46<Conc_sw!$C$10),(Conc_sw!G46=Conc_sw!$C$10))),Input_drift,0)) -> 0 | J46: 0 | K46: 0 | L46: 0
G47: 41 | H47: 0 | I47: =IF(Single_Multi="Single",0,IF(AND(MOD(G47/Time_between_applications,1)=0,OR((Conc_sw!G47<Conc_sw!$C$10),(Conc_sw!G47=Conc_sw!$C$10))),Input_drift,0)) -> 0 | J47: 0 | K47: 0 | L47: 0
G48: 42 | H48: 0 | I48: =IF(Single_Multi="Single",0,IF(AND(MOD(G48/Time_between_applications,1)=0,OR((Conc_sw!G48<Conc_sw!$C$10),(Conc_sw!G48=Conc_sw!$C$10))),Input_drift,0)) -> 0 | J48: 0 | K48: 0 | L48: 0
G49: 43 | H49: 0 | I49: =IF(Single_Multi="Single",0,IF(AND(MOD(G49/Time_between_applications,1)=0,OR((Conc_sw!G49<Conc_sw!$C$10),(Conc_sw!G49=Conc_sw!$C$10))),Input_drift,0)) -> 0 | J49: 0 | K49: 0 | L49: 0
G50: 44 | H50: 0 | I50: =IF(Single_Multi="Single",0,IF(AND(MOD(G50/Time_between_applications,1)=0,OR((Conc_sw!G50<Conc_sw!$C$10),(Conc_sw!G50=Conc_sw!$C$10))),Input_drift,0)) -> 0 | J50: 0 | K50: 0 | L50: 0
G51: 45 | H51: 0 | I51: =IF(Single_Multi="Single",0,IF(AND(MOD(G51/Time_between_applications,1)=0,OR((Conc_sw!G51<Conc_sw!$C$10),(Conc_sw!G51=Conc_sw!$C$10))),Input_drift,0)) -> 0 | J51: 0 | K51: 0 | L51: 0
G52: 46 | H52: 0 | I52: =IF(Single_Multi="Single",0,IF(AND(MOD(G52/Time_between_applications,1)=0,OR((Conc_sw!G52<Conc_sw!$C$10),(Conc_sw!G52=Conc_sw!$C$10))),Input_drift,0)) -> 0 | J52: 0 | K52: 0 | L52: 0
G53: 47 | H53: 0 | I53: =IF(Single_Multi="Single",0,IF(AND(MOD(G53/Time_between_applications,1)=0,OR((Conc_sw!G53<Conc_sw!$C$10),(Conc_sw!G53=Conc_sw!$C$10))),Input_drift,0)) -> 0 | J53: 0 | K53: 0 | L53: 0
G54: 48 | H54: 0 | I54: =IF(Single_Multi="Single",0,IF(AND(MOD(G54/Time_between_applications,1)=0,OR((Conc_sw!G54<Conc_sw!$C$10),(Conc_sw!G54=Conc_sw!$C$10))),Input_drift,0)) -> 0 | J54: 0 | K54: 0 | L54: 0
G55: 49 | H55: 0 | I55: =IF(Single_Multi="Single",0,IF(AND(MOD(G55/Time_between_applications,1)=0,OR((Conc_sw!G55<Conc_sw!$C$10),(Conc_sw!G55=Conc_sw!$C$10))),Input_drift,0)) -> 0 | J55: 0 | K55: 0 | L55: 0
G56: 50 | H56: 0 | I56: =IF(Single_Multi="Single",0,IF(AND(MOD(G56/Time_between_applications,1)=0,OR((Conc_sw!G56<Conc_sw!$C$10),(Conc_sw!G56=Conc_sw!$C$10))),Input_drift,0)) -> 0 | J56: 0 | K56: 0 | L56: 0
G57: 51 | H57: 0 | I57: =IF(Single_Multi="Single",0,IF(AND(MOD(G57/Time_between_applications,1)=0,OR((Conc_sw!G57<Conc_sw!$C$10),(Conc_sw!G57=Conc_sw!$C$10))),Input_drift,0)) -> 0 | J57: 0 | K57: 0 | L57: 0
G58: 52 | H58: 0 | I58: =IF(Single_Multi="Single",0,IF(AND(MOD(G58/Time_between_applications,1)=0,OR((Conc_sw!G58<Conc_sw!$C$10),(Conc_sw!G58=Conc_sw!$C$10))),Input_drift,0)) -> 0 | J58: 0 | K58: 0 | L58: 0
G59: 53 | H59: 0 | I59: =IF(Single_Multi="Single",0,IF(AND(MOD(G59/Time_between_applications,1)=0,OR((Conc_sw!G59<Conc_sw!$C$10),(Conc_sw!G59=Conc_sw!$C$10))),Input_drift,0)) -> 0 | J59: 0 | K59: 0 | L59: 0
G60: 54 | H60: 0 | I60: =IF(Single_Multi="Single",0,IF(AND(MOD(G60/Time_between_applications,1)=0,OR((Conc_sw!G60<Conc_sw!$C$10),(Conc_sw!G60=Conc_sw!$C$10))),Input_drift,0)) -> 0 | J60: 0 | K60: 0 | L60: 0
G61: 55 | H61: 0 | I61: =IF(Single_Multi="Single",0,IF(AND(MOD(G61/Time_between_applications,1)=0,OR((Conc_sw!G61<Conc_sw!$C$10),(Conc_sw!G61=Conc_sw!$C$10))),Input_drift,0)) -> 0 | J61: 0 | K61: 0 | L61: 0
G62: 56 | H62: 0 | I62: =IF(Single_Multi="Single",0,IF(AND(MOD(G62/Time_between_applications,1)=0,OR((Conc_sw!G62<Conc_sw!$C$10),(Conc_sw!G62=Conc_sw!$C$10))),Input_drift,0)) -> 0 | J62: 0 | K62: 0 | L62: 0
G63: 57 | H63: 0 | I63: =IF(Single_Multi="Single",0,IF(AND(MOD(G63/Time_between_applications,1)=0,OR((Conc_sw!G63<Conc_sw!$C$10),(Conc_sw!G63=Conc_sw!$C$10))),Input_drift,0)) -> 0 | J63: 0 | K63: 0 | L63: 0
G64: 58 | H64: 0 | I64: =IF(Single_Multi="Single",0,IF(AND(MOD(G64/Time_between_applications,1)=0,OR((Conc_sw!G64<Conc_sw!$C$10),(Conc_sw!G64=Conc_sw!$C$10))),Input_drift,0)) -> 0 | J64: 0 | K64: 0 | L64: 0
G65: 59 | H65: 0 | I65: =IF(Single_Multi="Single",0,IF(AND(MOD(G65/Time_between_applications,1)=0,OR((Conc_sw!G65<Conc_sw!$C$10),(Conc_sw!G65=Conc_sw!$C$10))),Input_drift,0)) -> 0 | J65: 0 | K65: 0 | L65: 0
G66: 60 | H66: 0 | I66: =IF(Single_Multi="Single",0,IF(AND(MOD(G66/Time_between_applications,1)=0,OR((Conc_sw!G66<Conc_sw!$C$10),(Conc_sw!G66=Conc_sw!$C$10))),Input_drift,0)) -> 0 | J66: 0 | K66: 0 | L66: 0
G67: 61 | H67: 0 | I67: =IF(Single_Multi="Single",0,IF(AND(MOD(G67/Time_between_applications,1)=0,OR((Conc_sw!G67<Conc_sw!$C$10),(Conc_sw!G67=Conc_sw!$C$10))),Input_drift,0)) -> 0 | J67: 0 | K67: 0 | L67: 0
G68: 62 | H68: 0 | I68: =IF(Single_Multi="Single",0,IF(AND(MOD(G68/Time_between_applications,1)=0,OR((Conc_sw!G68<Conc_sw!$C$10),(Conc_sw!G68=Conc_sw!$C$10))),Input_drift,0)) -> 0 | J68: 0 | K68: 0 | L68: 0
G69: 63 | H69: 0 | I69: =IF(Single_Multi="Single",0,IF(AND(MOD(G69/Time_between_applications,1)=0,OR((Conc_sw!G69<Conc_sw!$C$10),(Conc_sw!G69=Conc_sw!$C$10))),Input_drift,0)) -> 0 | J69: 0 | K69: 0 | L69: 0
G70: 64 | H70: =IF(G70=((Time_between_applications*(Number_of_applications-1))+4),Input_runoff,0) -> 0 | I70: =IF(Single_Multi="Single",0,IF(AND(MOD(G70/Time_between_applications,1)=0,OR((Conc_sw!G70<Conc_sw!$C$10),(Conc_sw!G70=Conc_sw!$C$10))),Input_drift,0)) -> 0 | J70: =(H70+I70)/DEPTHwater -> 0 | K70: 0 | L70: =(K70)/(1+Kpsusp*SUSPwater*0.000001) -> 0
G71: 65 | H71: 0 | I71: =IF(Single_Multi="Single",0,IF(AND(MOD(G71/Time_between_applications,1)=0,OR((Conc_sw!G71<Conc_sw!$C$10),(Conc_sw!G71=Conc_sw!$C$10))),Input_drift,0)) -> 0 | J71: 0 | K71: =(J71+K70)*EXP(-ktotal_water*$G$7) -> 0 | L71: 0
G72: 66 | H72: 0 | I72: =IF(Single_Multi="Single",0,IF(AND(MOD(G72/Time_between_applications,1)=0,OR((Conc_sw!G72<Conc_sw!$C$10),(Conc_sw!G72=Conc_sw!$C$10))),Input_drift,0)) -> 0 | J72: 0 | K72: 0 | L72: 0
G73: 67 | H73: 0 | I73: =IF(Single_Multi="Single",0,IF(AND(MOD(G73/Time_between_applications,1)=0,OR((Conc_sw!G73<Conc_sw!$C$10),(Conc_sw!G73=Conc_sw!$C$10))),Input_drift,0)) -> 0 | J73: 0 | K73: 0 | L73: 0
G74: 68 | H74: 0 | I74: =IF(Single_Multi="Single",0,IF(AND(MOD(G74/Time_between_applications,1)=0,OR((Conc_sw!G74<Conc_sw!$C$10),(Conc_sw!G74=Conc_sw!$C$10))),Input_drift,0)) -> 0 | J74: 0 | K74: 0 | L74: 0
G75: 69 | H75: 0 | I75: =IF(Single_Multi="Single",0,IF(AND(MOD(G75/Time_between_applications,1)=0,OR((Conc_sw!G75<Conc_sw!$C$10),(Conc_sw!G75=Conc_sw!$C$10))),Input_drift,0)) -> 0 | J75: 0 | K75: 0 | L75: 0
G76: 70 | H76: 0 | I76: =IF(Single_Multi="Single",0,IF(AND(MOD(G76/Time_between_applications,1)=0,OR((Conc_sw!G76<Conc_sw!$C$10),(Conc_sw!G76=Conc_sw!$C$10))),Input_drift,0)) -> 0 | J76: 0 | K76: 0 | L76: 0
G77: 71 | H77: 0 | I77: =IF(Single_Multi="Single",0,IF(AND(MOD(G77/Time_between_applications,1)=0,OR((Conc_sw!G77<Conc_sw!$C$10),(Conc_sw!G77=Conc_sw!$C$10))),Input_drift,0)) -> 0 | J77: 0 | K77: 0 | L77: 0
G78: 72 | H78: 0 | I78: =IF(Single_Multi="Single",0,IF(AND(MOD(G78/Time_between_applications,1)=0,OR((Conc_sw!G78<Conc_sw!$C$10),(Conc_sw!G78=Conc_sw!$C$10))),Input_drift,0)) -> 0 | J78: 0 | K78: 0 | L78: 0
G79: 73 | H79: 0 | I79: =IF(Single_Multi="Single",0,IF(AND(MOD(G79/Time_between_applications,1)=0,OR((Conc_sw!G79<Conc_sw!$C$10),(Conc_sw!G79=Conc_sw!$C$10))),Input_drift,0)) -> 0 | J79: 0 | K79: 0 | L79: 0
G80: 74 | H80: 0 | I80: =IF(Single_Multi="Single",0,IF(AND(MOD(G80/Time_between_applications,1)=0,OR((Conc_sw!G80<Conc_sw!$C$10),(Conc_sw!G80=Conc_sw!$C$10))),Input_drift,0)) -> 0 | J80: 0 | K80: 0 | L80: 0
G81: 75 | H81: 0 | I81: =IF(Single_Multi="Single",0,IF(AND(MOD(G81/Time_between_applications,1)=0,OR((Conc_sw!G81<Conc_sw!$C$10),(Conc_sw!G81=Conc_sw!$C$10))),Input_drift,0)) -> 0 | J81: 0 | K81: 0 | L81: 0
G82: 76 | H82: 0 | I82: =IF(Single_Multi="Single",0,IF(AND(MOD(G82/Time_between_applications,1)=0,OR((Conc_sw!G82<Conc_sw!$C$10),(Conc_sw!G82=Conc_sw!$C$10))),Input_drift,0)) -> 0 | J82: 0 | K82: 0 | L82: 0
G83: 77 | H83: 0 | I83: =IF(Single_Multi="Single",0,IF(AND(MOD(G83/Time_between_applications,1)=0,OR((Conc_sw!G83<Conc_sw!$C$10),(Conc_sw!G83=Conc_sw!$C$10))),Input_drift,0)) -> 0 | J83: 0 | K83: 0 | L83: 0
G84: 78 | H84: 0 | I84: =IF(Single_Multi="Single",0,IF(AND(MOD(G84/Time_between_applications,1)=0,OR((Conc_sw!G84<Conc_sw!$C$10),(Conc_sw!G84=Conc_sw!$C$10))),Input_drift,0)) -> 0 | J84: 0 | K84: 0 | L84: 0
G85: 79 | H85: 0 | I85: =IF(Single_Multi="Single",0,IF(AND(MOD(G85/Time_between_applications,1)=0,OR((Conc_sw!G85<Conc_sw!$C$10),(Conc_sw!G85=Conc_sw!$C$10))),Input_drift,0)) -> 0 | J85: 0 | K85: 0 | L85: 0
G86: 80 | H86: 0 | I86: =IF(Single_Multi="Single",0,IF(AND(MOD(G86/Time_between_applications,1)=0,OR((Conc_sw!G86<Conc_sw!$C$10),(Conc_sw!G86=Conc_sw!$C$10))),Input_drift,0)) -> 0 | J86: 0 | K86: 0 | L86: 0
G87: 81 | H87: 0 | I87: =IF(Single_Multi="Single",0,IF(AND(MOD(G87/Time_between_applications,1)=0,OR((Conc_sw!G87<Conc_sw!$C$10),(Conc_sw!G87=Conc_sw!$C$10))),Input_drift,0)) -> 0 | J87: 0 | K87: 0 | L87: 0
G88: 82 | H88: 0 | I88: =IF(Single_Multi="Single",0,IF(AND(MOD(G88/Time_between_applications,1)=0,OR((Conc_sw!G88<Conc_sw!$C$10),(Conc_sw!G88=Conc_sw!$C$10))),Input_drift,0)) -> 0 | J88: 0 | K88: 0 | L88: 0
G89: 83 | H89: 0 | I89: =IF(Single_Multi="Single",0,IF(AND(MOD(G89/Time_between_applications,1)=0,OR((Conc_sw!G89<Conc_sw!$C$10),(Conc_sw!G89=Conc_sw!$C$10))),Input_drift,0)) -> 0 | J89: 0 | K89: 0 | L89: 0
G90: 84 | H90: 0 | I90: =IF(Single_Multi="Single",0,IF(AND(MOD(G90/Time_between_applications,1)=0,OR((Conc_sw!G90<Conc_sw!$C$10),(Conc_sw!G90=Conc_sw!$C$10))),Input_drift,0)) -> 0 | J90: 0 | K90: 0 | L90: 0
G91: 85 | H91: 0 | I91: =IF(Single_Multi="Single",0,IF(AND(MOD(G91/Time_between_applications,1)=0,OR((Conc_sw!G91<Conc_sw!$C$10),(Conc_sw!G91=Conc_sw!$C$10))),Input_drift,0)) -> 0 | J91: 0 | K91: 0 | L91: 0
G92: 86 | H92: 0 | I92: =IF(Single_Multi="Single",0,IF(AND(MOD(G92/Time_between_applications,1)=0,OR((Conc_sw!G92<Conc_sw!$C$10),(Conc_sw!G92=Conc_sw!$C$10))),Input_drift,0)) -> 0 | J92: 0 | K92: 0 | L92: 0
G93: 87 | H93: 0 | I93: =IF(Single_Multi="Single",0,IF(AND(MOD(G93/Time_between_applications,1)=0,OR((Conc_sw!G93<Conc_sw!$C$10),(Conc_sw!G93=Conc_sw!$C$10))),Input_drift,0)) -> 0 | J93: 0 | K93: 0 | L93: 0
G94: 88 | H94: 0 | I94: =IF(Single_Multi="Single",0,IF(AND(MOD(G94/Time_between_applications,1)=0,OR((Conc_sw!G94<Conc_sw!$C$10),(Conc_sw!G94=Conc_sw!$C$10))),Input_drift,0)) -> 0 | J94: 0 | K94: 0 | L94: 0
G95: 89 | H95: 0 | I95: =IF(Single_Multi="Single",0,IF(AND(MOD(G95/Time_between_applications,1)=0,OR((Conc_sw!G95<Conc_sw!$C$10),(Conc_sw!G95=Conc_sw!$C$10))),Input_drift,0)) -> 0 | J95: 0 | K95: 0 | L95: 0
G96: 90 | H96: 0 | I96: =IF(Single_Multi="Single",0,IF(AND(MOD(G96/Time_between_applications,1)=0,OR((Conc_sw!G96<Conc_sw!$C$10),(Conc_sw!G96=Conc_sw!$C$10))),Input_drift,0)) -> 0 | J96: 0 | K96: 0 | L96: 0
G97: 91 | H97: 0 | I97: =IF(Single_Multi="Single",0,IF(AND(MOD(G97/Time_between_applications,1)=0,OR((Conc_sw!G97<Conc_sw!$C$10),(Conc_sw!G97=Conc_sw!$C$10))),Input_drift,0)) -> 0 | J97: 0 | K97: 0 | L97: 0
G98: 92 | H98: 0 | I98: =IF(Single_Multi="Single",0,IF(AND(MOD(G98/Time_between_applications,1)=0,OR((Conc_sw!G98<Conc_sw!$C$10),(Conc_sw!G98=Conc_sw!$C$10))),Input_drift,0)) -> 0 | J98: 0 | K98: 0 | L98: 0
G99: 93 | H99: 0 | I99: =IF(Single_Multi="Single",0,IF(AND(MOD(G99/Time_between_applications,1)=0,OR((Conc_sw!G99<Conc_sw!$C$10),(Conc_sw!G99=Conc_sw!$C$10))),Input_drift,0)) -> 0 | J99: 0 | K99: 0 | L99: 0
G100: 94 | H100: 0 | I100: =IF(Single_Multi="Single",0,IF(AND(MOD(G100/Time_between_applications,1)=0,OR((Conc_sw!G100<Conc_sw!$C$10),(Conc_sw!G100=Conc_sw!$C$10))),Input_drift,0)) -> 0 | J100: 0 | K100: 0 | L100: 0
G101: 95 | H101: 0 | I101: =IF(Single_Multi="Single",0,IF(AND(MOD(G101/Time_between_applications,1)=0,OR((Conc_sw!G101<Conc_sw!$C$10),(Conc_sw!G101=Conc_sw!$C$10))),Input_drift,0)) -> 0 | J101: 0 | K101: 0 | L101: 0
G102: 96 | H102: =IF(G102=((Time_between_applications*(Number_of_applications-1))+4),Input_runoff,0) -> 0 | I102: =IF(Single_Multi="Single",0,IF(AND(MOD(G102/Time_between_applications,1)=0,OR((Conc_sw!G102<Conc_sw!$C$10),(Conc_sw!G102=Conc_sw!$C$10))),Input_drift,0)) -> 0 | J102: =(H102+I102)/DEPTHwater -> 0 | K102: 0 | L102: =(K102)/(1+Kpsusp*SUSPwater*0.000001) -> 0
G103: 97 | H103: 0 | I103: =IF(Single_Multi="Single",0,IF(AND(MOD(G103/Time_between_applications,1)=0,OR((Conc_sw!G103<Conc_sw!$C$10),(Conc_sw!G103=Conc_sw!$C$10))),Input_drift,0)) -> 0 | J103: 0 | K103: =(J103+K102)*EXP(-ktotal_water*$G$7) -> 0 | L103: 0
G104: 98 | H104: 0 | I104: =IF(Single_Multi="Single",0,IF(AND(MOD(G104/Time_between_applications,1)=0,OR((Conc_sw!G104<Conc_sw!$C$10),(Conc_sw!G104=Conc_sw!$C$10))),Input_drift,0)) -> 0 | J104: 0 | K104: 0 | L104: 0
G105: 99 | H105: 0 | I105: =IF(Single_Multi="Single",0,IF(AND(MOD(G105/Time_between_applications,1)=0,OR((Conc_sw!G105<Conc_sw!$C$10),(Conc_sw!G105=Conc_sw!$C$10))),Input_drift,0)) -> 0 | J105: 0 | K105: 0 | L105: 0
G106: 100 | H106: 0 | I106: =IF(Single_Multi="Single",0,IF(AND(MOD(G106/Time_between_applications,1)=0,OR((Conc_sw!G106<Conc_sw!$C$10),(Conc_sw!G106=Conc_sw!$C$10))),Input_drift,0)) -> 0 | J106: 0 | K106: 0 | L106: 0
G107: 101 | H107: =IF(G107=((Time_between_applications*(Number_of_applications-1))+4),Input_runoff,0) -> 0 | I107: =IF(Single_Multi="Single",0,IF(AND(MOD(G107/Time_between_applications,1)=0,OR((Conc_sw!G107<Conc_sw!$C$10),(Conc_sw!G107=Conc_sw!$C$10))),Input_drift,0)) -> 0 | J107: =(H107+I107)/DEPTHwater -> 0 | K107: =(J107+K106)*EXP(-ktotal_water*$G$7) -> 0 | L107: =(K107)/(1+Kpsusp*SUSPwater*0.000001) -> 0
G108: 102 | H108: 0 | I108: =IF(Single_Multi="Single",0,IF(AND(MOD(G108/Time_between_applications,1)=0,OR((Conc_sw!G108<Conc_sw!$C$10),(Conc_sw!G108=Conc_sw!$C$10))),Input_drift,0)) -> 0 | J108: 0 | K108: 0 | L108: 0
G109: 103 | H109: 0 | I109: =IF(Single_Multi="Single",0,IF(AND(MOD(G109/Time_between_applications,1)=0,OR((Conc_sw!G109<Conc_sw!$C$10),(Conc_sw!G109=Conc_sw!$C$10))),Input_drift,0)) -> 0 | J109: 0 | K109: 0 | L109: 0
G110: 104 | H110: 0 | I110: =IF(Single_Multi="Single",0,IF(AND(MOD(G110/Time_between_applications,1)=0,OR((Conc_sw!G110<Conc_sw!$C$10),(Conc_sw!G110=Conc_sw!$C$10))),Input_drift,0)) -> 0 | J110: 0 | K110: 0 | L110: 0
G111: 105 | H111: 0 | I111: =IF(Single_Multi="Single",0,IF(AND(MOD(G111/Time_between_applications,1)=0,OR((Conc_sw!G111<Conc_sw!$C$10),(Conc_sw!G111=Conc_sw!$C$10))),Input_drift,0)) -> 0 | J111: 0 | K111: 0 | L111: 0
G112: 106 | H112: 0 | I112: =IF(Single_Multi="Single",0,IF(AND(MOD(G112/Time_between_applications,1)=0,OR((Conc_sw!G112<Conc_sw!$C$10),(Conc_sw!G112=Conc_sw!$C$10))),Input_drift,0)) -> 0 | J112: 0 | K112: 0 | L112: 0
G113: 107 | H113: 0 | I113: =IF(Single_Multi="Single",0,IF(AND(MOD(G113/Time_between_applications,1)=0,OR((Conc_sw!G113<Conc_sw!$C$10),(Conc_sw!G113=Conc_sw!$C$10))),Input_drift,0)) -> 0 | J113: 0 | K113: 0 | L113: 0
G114: 108 | H114: 0 | I114: =IF(Single_Multi="Single",0,IF(AND(MOD(G114/Time_between_applications,1)=0,OR((Conc_sw!G114<Conc_sw!$C$10),(Conc_sw!G114=Conc_sw!$C$10))),Input_drift,0)) -> 0 | J114: 0 | K114: 0 | L114: 0
G115: 109 | H115: 0 | I115: =IF(Single_Multi="Single",0,IF(AND(MOD(G115/Time_between_applications,1)=0,OR((Conc_sw!G115<Conc_sw!$C$10),(Conc_sw!G115=Conc_sw!$C$10))),Input_drift,0)) -> 0 | J115: 0 | K115: 0 | L115: 0
G116: 110 | H116: 0 | I116: =IF(Single_Multi="Single",0,IF(AND(MOD(G116/Time_between_applications,1)=0,OR((Conc_sw!G116<Conc_sw!$C$10),(Conc_sw!G116=Conc_sw!$C$10))),Input_drift,0)) -> 0 | J116: 0 | K116: 0 | L116: 0
G117: 111 | H117: 0 | I117: =IF(Single_Multi="Single",0,IF(AND(MOD(G117/Time_between_applications,1)=0,OR((Conc_sw!G117<Conc_sw!$C$10),(Conc_sw!G117=Conc_sw!$C$10))),Input_drift,0)) -> 0 | J117: 0 | K117: 0 | L117: 0
G118: 112 | H118: 0 | I118: =IF(Single_Multi="Single",0,IF(AND(MOD(G118/Time_between_applications,1)=0,OR((Conc_sw!G118<Conc_sw!$C$10),(Conc_sw!G118=Conc_sw!$C$10))),Input_drift,0)) -> 0 | J118: 0 | K118: 0 | L118: 0
G119: 113 | H119: 0 | I119: =IF(Single_Multi="Single",0,IF(AND(MOD(G119/Time_between_applications,1)=0,OR((Conc_sw!G119<Conc_sw!$C$10),(Conc_sw!G119=Conc_sw!$C$10))),Input_drift,0)) -> 0 | J119: 0 | K119: 0 | L119: 0
G120: 114 | H120: 0 | I120: =IF(Single_Multi="Single",0,IF(AND(MOD(G120/Time_between_applications,1)=0,OR((Conc_sw!G120<Conc_sw!$C$10),(Conc_sw!G120=Conc_sw!$C$10))),Input_drift,0)) -> 0 | J120: 0 | K120: 0 | L120: 0
G121: 115 | H121: 0 | I121: =IF(Single_Multi="Single",0,IF(AND(MOD(G121/Time_between_applications,1)=0,OR((Conc_sw!G121<Conc_sw!$C$10),(Conc_sw!G121=Conc_sw!$C$10))),Input_drift,0)) -> 0 | J121: 0 | K121: 0 | L121: 0
G122: 116 | H122: 0 | I122: =IF(Single_Multi="Single",0,IF(AND(MOD(G122/Time_between_applications,1)=0,OR((Conc_sw!G122<Conc_sw!$C$10),(Conc_sw!G122=Conc_sw!$C$10))),Input_drift,0)) -> 0 | J122: 0 | K122: 0 | L122: 0
G123: 117 | H123: 0 | I123: =IF(Single_Multi="Single",0,IF(AND(MOD(G123/Time_between_applications,1)=0,OR((Conc_sw!G123<Conc_sw!$C$10),(Conc_sw!G123=Conc_sw!$C$10))),Input_drift,0)) -> 0 | J123: 0 | K123: 0 | L123: 0
G124: 118 | H124: 0 | I124: =IF(Single_Multi="Single",0,IF(AND(MOD(G124/Time_between_applications,1)=0,OR((Conc_sw!G124<Conc_sw!$C$10),(Conc_sw!G124=Conc_sw!$C$10))),Input_drift,0)) -> 0 | J124: 0 | K124: 0 | L124: 0
G125: 119 | H125: 0 | I125: =IF(Single_Multi="Single",0,IF(AND(MOD(G125/Time_between_applications,1)=0,OR((Conc_sw!G125<Conc_sw!$C$10),(Conc_sw!G125=Conc_sw!$C$10))),Input_drift,0)) -> 0 | J125: 0 | K125: 0 | L125: 0
G126: 120 | H126: 0 | I126: =IF(Single_Multi="Single",0,IF(AND(MOD(G126/Time_between_applications,1)=0,OR((Conc_sw!G126<Conc_sw!$C$10),(Conc_sw!G126=Conc_sw!$C$10))),Input_drift,0)) -> 0 | J126: 0 | K126: 0 | L126: 0
G127: 121 | H127: 0 | I127: =IF(Single_Multi="Single",0,IF(AND(MOD(G127/Time_between_applications,1)=0,OR((Conc_sw!G127<Conc_sw!$C$10),(Conc_sw!G127=Conc_sw!$C$10))),Input_drift,0)) -> 0 | J127: 0 | K127: 0 | L127: 0
G128: 122 | H128: 0 | I128: =IF(Single_Multi="Single",0,IF(AND(MOD(G128/Time_between_applications,1)=0,OR((Conc_sw!G128<Conc_sw!$C$10),(Conc_sw!G128=Conc_sw!$C$10))),Input_drift,0)) -> 0 | J128: 0 | K128: 0 | L128: 0
G129: 123 | H129: 0 | I129: =IF(Single_Multi="Single",0,IF(AND(MOD(G129/Time_between_applications,1)=0,OR((Conc_sw!G129<Conc_sw!$C$10),(Conc_sw!G129=Conc_sw!$C$10))),Input_drift,0)) -> 0 | J129: 0 | K129: 0 | L129: 0
G130: 124 | H130: 0 | I130: =IF(Single_Multi="Single",0,IF(AND(MOD(G130/Time_between_applications,1)=0,OR((Conc_sw!G130<Conc_sw!$C$10),(Conc_sw!G130=Conc_sw!$C$10))),Input_drift,0)) -> 0 | J130: 0 | K130: 0 | L130: 0
G131: 125 | H131: 0 | I131: =IF(Single_Multi="Single",0,IF(AND(MOD(G131/Time_between_applications,1)=0,OR((Conc_sw!G131<Conc_sw!$C$10),(Conc_sw!G131=Conc_sw!$C$10))),Input_drift,0)) -> 0 | J131: 0 | K131: 0 | L131: 0
G132: 126 | H132: 0 | I132: =IF(Single_Multi="Single",0,IF(AND(MOD(G132/Time_between_applications,1)=0,OR((Conc_sw!G132<Conc_sw!$C$10),(Conc_sw!G132=Conc_sw!$C$10))),Input_drift,0)) -> 0 | J132: 0 | K132: 0 | L132: 0
G133: 127 | H133: 0 | I133: =IF(Single_Multi="Single",0,IF(AND(MOD(G133/Time_between_applications,1)=0,OR((Conc_sw!G133<Conc_sw!$C$10),(Conc_sw!G133=Conc_sw!$C$10))),Input_drift,0)) -> 0 | J133: 0 | K133: 0 | L133: 0
G134: 128 | H134: 0 | I134: =IF(Single_Multi="Single",0,IF(AND(MOD(G134/Time_between_applications,1)=0,OR((Conc_sw!G134<Conc_sw!$C$10),(Conc_sw!G134=Conc_sw!$C$10))),Input_drift,0)) -> 0 | J134: 0 | K134: 0 | L134: 0
G135: 129 | H135: 0 | I135: =IF(Single_Multi="Single",0,IF(AND(MOD(G135/Time_between_applications,1)=0,OR((Conc_sw!G135<Conc_sw!$C$10),(Conc_sw!G135=Conc_sw!$C$10))),Input_drift,0)) -> 0 | J135: 0 | K135: 0 | L135: 0
G136: 130 | H136: 0 | I136: =IF(Single_Multi="Single",0,IF(AND(MOD(G136/Time_between_applications,1)=0,OR((Conc_sw!G136<Conc_sw!$C$10),(Conc_sw!G136=Conc_sw!$C$10))),Input_drift,0)) -> 0 | J136: 0 | K136: 0 | L136: 0
G137: 131 | H137: 0 | I137: =IF(Single_Multi="Single",0,IF(AND(MOD(G137/Time_between_applications,1)=0,OR((Conc_sw!G137<Conc_sw!$C$10),(Conc_sw!G137=Conc_sw!$C$10))),Input_drift,0)) -> 0 | J137: 0 | K137: 0 | L137: 0
G138: 132 | H138: 0 | I138: =IF(Single_Multi="Single",0,IF(AND(MOD(G138/Time_between_applications,1)=0,OR((Conc_sw!G138<Conc_sw!$C$10),(Conc_sw!G138=Conc_sw!$C$10))),Input_drift,0)) -> 0 | J138: 0 | K138: 0 | L138: 0
G139: 133 | H139: 0 | I139: =IF(Single_Multi="Single",0,IF(AND(MOD(G139/Time_between_applications,1)=0,OR((Conc_sw!G139<Conc_sw!$C$10),(Conc_sw!G139=Conc_sw!$C$10))),Input_drift,0)) -> 0 | J139: 0 | K139: 0 | L139: 0
G140: 134 | H140: 0 | I140: =IF(Single_Multi="Single",0,IF(AND(MOD(G140/Time_between_applications,1)=0,OR((Conc_sw!G140<Conc_sw!$C$10),(Conc_sw!G140=Conc_sw!$C$10))),Input_drift,0)) -> 0 | J140: 0 | K140: 0 | L140: 0
G141: 135 | H141: 0 | I141: =IF(Single_Multi="Single",0,IF(AND(MOD(G141/Time_between_applications,1)=0,OR((Conc_sw!G141<Conc_sw!$C$10),(Conc_sw!G141=Conc_sw!$C$10))),Input_drift,0)) -> 0 | J141: 0 | K141: 0 | L141: 0
G142: 136 | H142: 0 | I142: =IF(Single_Multi="Single",0,IF(AND(MOD(G142/Time_between_applications,1)=0,OR((Conc_sw!G142<Conc_sw!$C$10),(Conc_sw!G142=Conc_sw!$C$10))),Input_drift,0)) -> 0 | J142: 0 | K142: 0 | L142: 0
G143: 137 | H143: 0 | I143: =IF(Single_Multi="Single",0,IF(AND(MOD(G143/Time_between_applications,1)=0,OR((Conc_sw!G143<Conc_sw!$C$10),(Conc_sw!G143=Conc_sw!$C$10))),Input_drift,0)) -> 0 | J143: 0 | K143: 0 | L143: 0
G144: 138 | H144: 0 | I144: =IF(Single_Multi="Single",0,IF(AND(MOD(G144/Time_between_applications,1)=0,OR((Conc_sw!G144<Conc_sw!$C$10),(Conc_sw!G144=Conc_sw!$C$10))),Input_drift,0)) -> 0 | J144: 0 | K144: 0 | L144: 0
G145: 139 | H145: 0 | I145: =IF(Single_Multi="Single",0,IF(AND(MOD(G145/Time_between_applications,1)=0,OR((Conc_sw!G145<Conc_sw!$C$10),(Conc_sw!G145=Conc_sw!$C$10))),Input_drift,0)) -> 0 | J145: 0 | K145: 0 | L145: 0
G146: 140 | H146: 0 | I146: =IF(Single_Multi="Single",0,IF(AND(MOD(G146/Time_between_applications,1)=0,OR((Conc_sw!G146<Conc_sw!$C$10),(Conc_sw!G146=Conc_sw!$C$10))),Input_drift,0)) -> 0 | J146: 0 | K146: 0 | L146: 0
G147: 141 | H147: 0 | I147: =IF(Single_Multi="Single",0,IF(AND(MOD(G147/Time_between_applications,1)=0,OR((Conc_sw!G147<Conc_sw!$C$10),(Conc_sw!G147=Conc_sw!$C$10))),Input_drift,0)) -> 0 | J147: 0 | K147: 0 | L147: 0
G148: 142 | H148: 0 | I148: =IF(Single_Multi="Single",0,IF(AND(MOD(G148/Time_between_applications,1)=0,OR((Conc_sw!G148<Conc_sw!$C$10),(Conc_sw!G148=Conc_sw!$C$10))),Input_drift,0)) -> 0 | J148: 0 | K148: 0 | L148: 0
G149: 143 | H149: 0 | I149: =IF(Single_Multi="Single",0,IF(AND(MOD(G149/Time_between_applications,1)=0,OR((Conc_sw!G149<Conc_sw!$C$10),(Conc_sw!G149=Conc_sw!$C$10))),Input_drift,0)) -> 0 | J149: 0 | K149: 0 | L149: 0
G150: 144 | H150: 0 | I150: =IF(Single_Multi="Single",0,IF(AND(MOD(G150/Time_between_applications,1)=0,OR((Conc_sw!G150<Conc_sw!$C$10),(Conc_sw!G150=Conc_sw!$C$10))),Input_drift,0)) -> 0 | J150: 0 | K150: 0 | L150: 0
G151: 145 | H151: 0 | I151: =IF(Single_Multi="Single",0,IF(AND(MOD(G151/Time_between_applications,1)=0,OR((Conc_sw!G151<Conc_sw!$C$10),(Conc_sw!G151=Conc_sw!$C$10))),Input_drift,0)) -> 0 | J151: 0 | K151: 0 | L151: 0
G152: 146 | H152: 0 | I152: =IF(Single_Multi="Single",0,IF(AND(MOD(G152/Time_between_applications,1)=0,OR((Conc_sw!G152<Conc_sw!$C$10),(Conc_sw!G152=Conc_sw!$C$10))),Input_drift,0)) -> 0 | J152: 0 | K152: 0 | L152: 0
G153: 147 | H153: 0 | I153: =IF(Single_Multi="Single",0,IF(AND(MOD(G153/Time_between_applications,1)=0,OR((Conc_sw!G153<Conc_sw!$C$10),(Conc_sw!G153=Conc_sw!$C$10))),Input_drift,0)) -> 0 | J153: 0 | K153: 0 | L153: 0
G154: 148 | H154: 0 | I154: =IF(Single_Multi="Single",0,IF(AND(MOD(G154/Time_between_applications,1)=0,OR((Conc_sw!G154<Conc_sw!$C$10),(Conc_sw!G154=Conc_sw!$C$10))),Input_drift,0)) -> 0 | J154: 0 | K154: 0 | L154: 0
G155: 149 | H155: 0 | I155: =IF(Single_Multi="Single",0,IF(AND(MOD(G155/Time_between_applications,1)=0,OR((Conc_sw!G155<Conc_sw!$C$10),(Conc_sw!G155=Conc_sw!$C$10))),Input_drift,0)) -> 0 | J155: 0 | K155: 0 | L155: 0
G156: 150 | H156: 0 | I156: =IF(Single_Multi="Single",0,IF(AND(MOD(G156/Time_between_applications,1)=0,OR((Conc_sw!G156<Conc_sw!$C$10),(Conc_sw!G156=Conc_sw!$C$10))),Input_drift,0)) -> 0 | J156: 0 | K156: 0 | L156: 0
G157: 151 | H157: 0 | I157: =IF(Single_Multi="Single",0,IF(AND(MOD(G157/Time_between_applications,1)=0,OR((Conc_sw!G157<Conc_sw!$C$10),(Conc_sw!G157=Conc_sw!$C$10))),Input_drift,0)) -> 0 | J157: 0 | K157: 0 | L157: 0
G158: 152 | H158: 0 | I158: =IF(Single_Multi="Single",0,IF(AND(MOD(G158/Time_between_applications,1)=0,OR((Conc_sw!G158<Conc_sw!$C$10),(Conc_sw!G158=Conc_sw!$C$10))),Input_drift,0)) -> 0 | J158: 0 | K158: 0 | L158: 0
G159: 153 | H159: 0 | I159: =IF(Single_Multi="Single",0,IF(AND(MOD(G159/Time_between_applications,1)=0,OR((Conc_sw!G159<Conc_sw!$C$10),(Conc_sw!G159=Conc_sw!$C$10))),Input_drift,0)) -> 0 | J159: 0 | K159: 0 | L159: 0
G160: 154 | H160: 0 | I160: =IF(Single_Multi="Single",0,IF(AND(MOD(G160/Time_between_applications,1)=0,OR((Conc_sw!G160<Conc_sw!$C$10),(Conc_sw!G160=Conc_sw!$C$10))),Input_drift,0)) -> 0 | J160: 0 | K160: 0 | L160: 0
G161: 155 | H161: 0 | I161: =IF(Single_Multi="Single",0,IF(AND(MOD(G161/Time_between_applications,1)=0,OR((Conc_sw!G161<Conc_sw!$C$10),(Conc_sw!G161=Conc_sw!$C$10))),Input_drift,0)) -> 0 | J161: 0 | K161: 0 | L161: 0
G162: 156 | H162: 0 | I162: =IF(Single_Multi="Single",0,IF(AND(MOD(G162/Time_between_applications,1)=0,OR((Conc_sw!G162<Conc_sw!$C$10),(Conc_sw!G162=Conc_sw!$C$10))),Input_drift,0)) -> 0 | J162: 0 | K162: 0 | L162: 0
G163: 157 | H163: 0 | I163: =IF(Single_Multi="Single",0,IF(AND(MOD(G163/Time_between_applications,1)=0,OR((Conc_sw!G163<Conc_sw!$C$10),(Conc_sw!G163=Conc_sw!$C$10))),Input_drift,0)) -> 0 | J163: 0 | K163: 0 | L163: 0
G164: 158 | H164: 0 | I164: =IF(Single_Multi="Single",0,IF(AND(MOD(G164/Time_between_applications,1)=0,OR((Conc_sw!G164<Conc_sw!$C$10),(Conc_sw!G164=Conc_sw!$C$10))),Input_drift,0)) -> 0 | J164: 0 | K164: 0 | L164: 0
G165: 159 | H165: 0 | I165: =IF(Single_Multi="Single",0,IF(AND(MOD(G165/Time_between_applications,1)=0,OR((Conc_sw!G165<Conc_sw!$C$10),(Conc_sw!G165=Conc_sw!$C$10))),Input_drift,0)) -> 0 | J165: 0 | K165: 0 | L165: 0
G166: 160 | H166: 0 | I166: =IF(Single_Multi="Single",0,IF(AND(MOD(G166/Time_between_applications,1)=0,OR((Conc_sw!G166<Conc_sw!$C$10),(Conc_sw!G166=Conc_sw!$C$10))),Input_drift,0)) -> 0 | J166: 0 | K166: 0 | L166: 0
G167: 161 | H167: 0 | I167: =IF(Single_Multi="Single",0,IF(AND(MOD(G167/Time_between_applications,1)=0,OR((Conc_sw!G167<Conc_sw!$C$10),(Conc_sw!G167=Conc_sw!$C$10))),Input_drift,0)) -> 0 | J167: 0 | K167: 0 | L167: 0
G168: 162 | H168: 0 | I168: =IF(Single_Multi="Single",0,IF(AND(MOD(G168/Time_between_applications,1)=0,OR((Conc_sw!G168<Conc_sw!$C$10),(Conc_sw!G168=Conc_sw!$C$10))),Input_drift,0)) -> 0 | J168: 0 | K168: 0 | L168: 0
G169: 163 | H169: =IF(G169=((Time_between_applications*(Number_of_applications-1))+4),Input_runoff,0) -> 0 | I169: =IF(Single_Multi="Single",0,IF(AND(MOD(G169/Time_between_applications,1)=0,OR((Conc_sw!G169<Conc_sw!$C$10),(Conc_sw!G169=Conc_sw!$C$10))),Input_drift,0)) -> 0 | J169: 0 | K169: 0 | L169: 0
G170: 164 | H170: 0 | I170: =IF(Single_Multi="Single",0,IF(AND(MOD(G170/Time_between_applications,1)=0,OR((Conc_sw!G170<Conc_sw!$C$10),(Conc_sw!G170=Conc_sw!$C$10))),Input_drift,0)) -> 0 | J170: 0 | K170: 0 | L170: 0
G171: 165 | H171: =IF(G171=((Time_between_applications*(Number_of_applications-1))+4),Input_runoff,0) -> 0 | I171: =IF(Single_Multi="Single",0,IF(AND(MOD(G171/Time_between_applications,1)=0,OR((Conc_sw!G171<Conc_sw!$C$10),(Conc_sw!G171=Conc_sw!$C$10))),Input_drift,0)) -> 0 | J171: =(H171+I171)/DEPTHwater -> 0 | K171: =(J171+K170)*EXP(-ktotal_water*$G$7) -> 0 | L171: =(K171)/(1+Kpsusp*SUSPwater*0.000001) -> 0
G172: 166 | H172: 0 | I172: =IF(Single_Multi="Single",0,IF(AND(MOD(G172/Time_between_applications,1)=0,OR((Conc_sw!G172<Conc_sw!$C$10),(Conc_sw!G172=Conc_sw!$C$10))),Input_drift,0)) -> 0 | J172: 0 | K172: 0 | L172: 0
G173: 167 | H173: 0 | I173: =IF(Single_Multi="Single",0,IF(AND(MOD(G173/Time_between_applications,1)=0,OR((Conc_sw!G173<Conc_sw!$C$10),(Conc_sw!G173=Conc_sw!$C$10))),Input_drift,0)) -> 0 | J173: 0 | K173: 0 | L173: 0
G174: 168 | H174: 0 | I174: =IF(Single_Multi="Single",0,IF(AND(MOD(G174/Time_between_applications,1)=0,OR((Conc_sw!G174<Conc_sw!$C$10),(Conc_sw!G174=Conc_sw!$C$10))),Input_drift,0)) -> 0 | J174: 0 | K174: 0 | L174: 0
G175: 169 | H175: 0 | I175: =IF(Single_Multi="Single",0,IF(AND(MOD(G175/Time_between_applications,1)=0,OR((Conc_sw!G175<Conc_sw!$C$10),(Conc_sw!G175=Conc_sw!$C$10))),Input_drift,0)) -> 0 | J175: 0 | K175: 0 | L175: 0
G176: 170 | H176: 0 | I176: =IF(Single_Multi="Single",0,IF(AND(MOD(G176/Time_between_applications,1)=0,OR((Conc_sw!G176<Conc_sw!$C$10),(Conc_sw!G176=Conc_sw!$C$10))),Input_drift,0)) -> 0 | J176: 0 | K176: 0 | L176: 0
G177: 171 | H177: 0 | I177: =IF(Single_Multi="Single",0,IF(AND(MOD(G177/Time_between_applications,1)=0,OR((Conc_sw!G177<Conc_sw!$C$10),(Conc_sw!G177=Conc_sw!$C$10))),Input_drift,0)) -> 0 | J177: 0 | K177: 0 | L177: 0
G178: 172 | H178: 0 | I178: =IF(Single_Multi="Single",0,IF(AND(MOD(G178/Time_between_applications,1)=0,OR((Conc_sw!G178<Conc_sw!$C$10),(Conc_sw!G178=Conc_sw!$C$10))),Input_drift,0)) -> 0 | J178: 0 | K178: 0 | L178: 0
G179: 173 | H179: 0 | I179: =IF(Single_Multi="Single",0,IF(AND(MOD(G179/Time_between_applications,1)=0,OR((Conc_sw!G179<Conc_sw!$C$10),(Conc_sw!G179=Conc_sw!$C$10))),Input_drift,0)) -> 0 | J179: 0 | K179: 0 | L179: 0
G180: 174 | H180: 0 | I180: =IF(Single_Multi="Single",0,IF(AND(MOD(G180/Time_between_applications,1)=0,OR((Conc_sw!G180<Conc_sw!$C$10),(Conc_sw!G180=Conc_sw!$C$10))),Input_drift,0)) -> 0 | J180: 0 | K180: 0 | L180: 0
G181: 175 | H181: 0 | I181: =IF(Single_Multi="Single",0,IF(AND(MOD(G181/Time_between_applications,1)=0,OR((Conc_sw!G181<Conc_sw!$C$10),(Conc_sw!G181=Conc_sw!$C$10))),Input_drift,0)) -> 0 | J181: 0 | K181: 0 | L181: 0
G182: 176 | H182: 0 | I182: =IF(Single_Multi="Single",0,IF(AND(MOD(G182/Time_between_applications,1)=0,OR((Conc_sw!G182<Conc_sw!$C$10),(Conc_sw!G182=Conc_sw!$C$10))),Input_drift,0)) -> 0 | J182: 0 | K182: 0 | L182: 0
G183: 177 | H183: 0 | I183: =IF(Single_Multi="Single",0,IF(AND(MOD(G183/Time_between_applications,1)=0,OR((Conc_sw!G183<Conc_sw!$C$10),(Conc_sw!G183=Conc_sw!$C$10))),Input_drift,0)) -> 0 | J183: 0 | K183: 0 | L183: 0
G184: 178 | H184: 0 | I184: =IF(Single_Multi="Single",0,IF(AND(MOD(G184/Time_between_applications,1)=0,OR((Conc_sw!G184<Conc_sw!$C$10),(Conc_sw!G184=Conc_sw!$C$10))),Input_drift,0)) -> 0 | J184: 0 | K184: 0 | L184: 0
G185: 179 | H185: 0 | I185: =IF(Single_Multi="Single",0,IF(AND(MOD(G185/Time_between_applications,1)=0,OR((Conc_sw!G185<Conc_sw!$C$10),(Conc_sw!G185=Conc_sw!$C$10))),Input_drift,0)) -> 0 | J185: 0 | K185: 0 | L185: 0
G186: 180 | H186: 0 | I186: =IF(Single_Multi="Single",0,IF(AND(MOD(G186/Time_between_applications,1)=0,OR((Conc_sw!G186<Conc_sw!$C$10),(Conc_sw!G186=Conc_sw!$C$10))),Input_drift,0)) -> 0 | J186: 0 | K186: 0 | L186: 0
G187: 181 | H187: 0 | I187: =IF(Single_Multi="Single",0,IF(AND(MOD(G187/Time_between_applications,1)=0,OR((Conc_sw!G187<Conc_sw!$C$10),(Conc_sw!G187=Conc_sw!$C$10))),Input_drift,0)) -> 0 | J187: 0 | K187: 0 | L187: 0
G188: 182 | H188: 0 | I188: =IF(Single_Multi="Single",0,IF(AND(MOD(G188/Time_between_applications,1)=0,OR((Conc_sw!G188<Conc_sw!$C$10),(Conc_sw!G188=Conc_sw!$C$10))),Input_drift,0)) -> 0 | J188: 0 | K188: 0 | L188: 0
G189: 183 | H189: 0 | I189: =IF(Single_Multi="Single",0,IF(AND(MOD(G189/Time_between_applications,1)=0,OR((Conc_sw!G189<Conc_sw!$C$10),(Conc_sw!G189=Conc_sw!$C$10))),Input_drift,0)) -> 0 | J189: 0 | K189: 0 | L189: 0
G190: 184 | H190: 0 | I190: =IF(Single_Multi="Single",0,IF(AND(MOD(G190/Time_between_applications,1)=0,OR((Conc_sw!G190<Conc_sw!$C$10),(Conc_sw!G190=Conc_sw!$C$10))),Input_drift,0)) -> 0 | J190: 0 | K190: 0 | L190: 0
G191: 185 | H191: 0 | I191: =IF(Single_Multi="Single",0,IF(AND(MOD(G191/Time_between_applications,1)=0,OR((Conc_sw!G191<Conc_sw!$C$10),(Conc_sw!G191=Conc_sw!$C$10))),Input_drift,0)) -> 0 | J191: 0 | K191: 0 | L191: 0
G192: 186 | H192: 0 | I192: =IF(Single_Multi="Single",0,IF(AND(MOD(G192/Time_between_applications,1)=0,OR((Conc_sw!G192<Conc_sw!$C$10),(Conc_sw!G192=Conc_sw!$C$10))),Input_drift,0)) -> 0 | J192: 0 | K192: 0 | L192: 0
G193: 187 | H193: 0 | I193: =IF(Single_Multi="Single",0,IF(AND(MOD(G193/Time_between_applications,1)=0,OR((Conc_sw!G193<Conc_sw!$C$10),(Conc_sw!G193=Conc_sw!$C$10))),Input_drift,0)) -> 0 | J193: 0 | K193: 0 | L193: 0
G194: 188 | H194: 0 | I194: =IF(Single_Multi="Single",0,IF(AND(MOD(G194/Time_between_applications,1)=0,OR((Conc_sw!G194<Conc_sw!$C$10),(Conc_sw!G194=Conc_sw!$C$10))),Input_drift,0)) -> 0 | J194: 0 | K194: 0 | L194: 0
G195: 189 | H195: 0 | I195: =IF(Single_Multi="Single",0,IF(AND(MOD(G195/Time_between_applications,1)=0,OR((Conc_sw!G195<Conc_sw!$C$10),(Conc_sw!G195=Conc_sw!$C$10))),Input_drift,0)) -> 0 | J195: 0 | K195: 0 | L195: 0
G196: 190 | H196: 0 | I196: =IF(Single_Multi="Single",0,IF(AND(MOD(G196/Time_between_applications,1)=0,OR((Conc_sw!G196<Conc_sw!$C$10),(Conc_sw!G196=Conc_sw!$C$10))),Input_drift,0)) -> 0 | J196: 0 | K196: 0 | L196: 0
G197: 191 | H197: 0 | I197: =IF(Single_Multi="Single",0,IF(AND(MOD(G197/Time_between_applications,1)=0,OR((Conc_sw!G197<Conc_sw!$C$10),(Conc_sw!G197=Conc_sw!$C$10))),Input_drift,0)) -> 0 | J197: 0 | K197: 0 | L197: 0
G198: 192 | H198: 0 | I198: =IF(Single_Multi="Single",0,IF(AND(MOD(G198/Time_between_applications,1)=0,OR((Conc_sw!G198<Conc_sw!$C$10),(Conc_sw!G198=Conc_sw!$C$10))),Input_drift,0)) -> 0 | J198: 0 | K198: 0 | L198: 0
G199: 193 | H199: 0 | I199: =IF(Single_Multi="Single",0,IF(AND(MOD(G199/Time_between_applications,1)=0,OR((Conc_sw!G199<Conc_sw!$C$10),(Conc_sw!G199=Conc_sw!$C$10))),Input_drift,0)) -> 0 | J199: 0 | K199: 0 | L199: 0
G200: 194 | H200: 0 | I200: =IF(Single_Multi="Single",0,IF(AND(MOD(G200/Time_between_applications,1)=0,OR((Conc_sw!G200<Conc_sw!$C$10),(Conc_sw!G200=Conc_sw!$C$10))),Input_drift,0)) -> 0 | J200: 0 | K200: 0 | L200: 0
G201: 195 | H201: 0 | I201: =IF(Single_Multi="Single",0,IF(AND(MOD(G201/Time_between_applications,1)=0,OR((Conc_sw!G201<Conc_sw!$C$10),(Conc_sw!G201=Conc_sw!$C$10))),Input_drift,0)) -> 0 | J201: 0 | K201: 0 | L201: 0
... 170 more rows

Sheet Crop parameters
B1: FERTILIZER ENVIRONMENTAL EXPOSURE (FEE) TOOL
B2: CROP PARAMETERS
E4: Micronutrient concentration ** | H4: Crop Yield (ww) *** | K4: Crop growth stage (BBCH codes) [% crop interception] ****
B5: Crop | C5: References | D5: Drift percentage * | E5: Copper | F5: Manganese | G5: Zinc | H5: Low | I5: High | J5: Medium | K5: Bare soil, BBCH 00-09 | L5: Minimal crop cover, BBCH 10-19 | M5: Intermediate crop cover, BBCH 20-39 | N5: Full canopy, BBCH 40-89
D6: [%] | E6: [g/t] | F6: [g/t] | G6: [g/t] | H6: [t/ha/y] | I6: [t/ha/y] | J6: [t/ha/y]
B7: SPERC 1: Outdoor use - direct application of solid fertilizers to soil; surface spreading | D7: 0 | K7: 0 | L7: 10 | M7: 25 | N7: 40
B8: SPERC 2: Outdoor use - direct application of solid or liquid fertilizers to soil; incorporation, placement, mixing, seed treatment, drip irrigation | D8: 0 | K8: 0 | L8: 0 | M8: 0 | N8: 0
B9: SPERC 3: Outdoor use - application of fertilizers by helicopter | D9: 33.2 | K9: 0 | L9: 20 | M9: 50 | N9: 70
B10: SPERC 4: Outdoor use - spray application of liquid fertilizers; soil surface spreading, sprinkler, pivot, foliar spray, slurry | D10: 15.725 | K10: 0 | L10: 20 | M10: 40 | N10: 65
B11: Generic crop
B12: ---------
B13: Cereals, spring | C13: 13, 18 | D13: 2.759 | E13: 11 | F13: 31 | G13: 24.66666667 | H13: 1.86 | I13: 6.464 | J13: 3.5239 | K13: 0 | L13: 0 | M13: 20 | N13: 70
B14: Cereals, winter | C14: 13, 18, 20 | D14: 2.759 | E14: 11 | F14: 21.14333333 | G14: 24 | H14: 1.27675 | I14: 8.031333333 | J14: 4.163416667 | K14: 0 | L14: 0 | M14: 20 | N14: 70
B15: Citrus | C15: 8, 10, 16, 18 | D15: 15.725 | E15: 0.53 | F15: 0.5625 | G15: 0.85 | H15: 8.833864009 | I15: 43.24749612 | J15: 20.26422655 | K15: 0 | L15: 80 | M15: 80 | N15: 80
B16: Field beans | C16: 16 | D16: 2.759 | E16: 13 | F16: 13 | G16: 38 | H16: 0.5736666667 | I16: 5.42 | J16: 2.456666667 | K16: 0 | L16: 25 | M16: 40 | N16: 70
B17: Grass / alfalfa | C17: 13, 16 | D17: 2.759 | E17: 6.5 | F17: 63 | G17: 39 | H17: 1.972833333 | I17: 27.35 | J17: 5.289416667 | K17: 0 | L17: 40 | M17: 60 | N17: 75
B18: Hops | C18: 14 | D18: 19.326 | E18: 319 | F18: 84 | G18: 38 | H18: 0.658 | I18: 1.963333333 | J18: 1.390833333 | K18: 0 | L18: 20 | M18: 50 | N18: 70
B19: Legumes | C19: 16 | D19: 2.759 | E19: 11 | F19: 13 | G19: 46 | H19: 1.2874 | I19: 4.431733333 | J19: 2.330333333 | K19: 0 | L19: 25 | M19: 50 | N19: 70
B20: Maize (grain) | C20: 13, 16, 11, 18 | D20: 2.759 | E20: 5.3 | F20: 9.3 | G20: 17.5 | H20: 3.812666667 | I20: 11.21466667 | J20: 7.4935 | K20: 0 | L20: 25 | M20: 50 | N20: 75
B21: Maize (silage) | C21: 11, 17 | D21: 2.759 | E21: 7.65 | F21: 91.8 | G21: 35.2 | H21: 7.495333333 | I21: 52.74666667 | J21: 33.87 | K21: 0 | L21: 25 | M21: 50 | N21: 75
B22: Oil seed rape, spring | C22: 18 | D22: 2.759 | E22: 5 | F22: 33 | G22: 30 | H22: 1.713333333 | I22: 2.966666667 | J22: 1.931333333 | K22: 0 | L22: 40 | M22: 70 | N22: 75
B23: Oil seed rape, winter | C23: 18 | D23: 2.759 | E23: 5 | F23: 33 | G23: 30 | H23: 2.044 | I23: 4.043333333 | J23: 2.98 | K23: 0 | L23: 40 | M23: 70 | N23: 75
B24: Olives | C24: 5 | D24: 15.725 | F24: 2.05 | G24: 3.1 | H24: 1.223716019 | I24: 8.69651569 | J24: 1.906672555 | K24: 0 | L24: 70 | M24: 70 | N24: 70
B25: Pome / stone fruit, (early) | C25: 2, 4, 9, 12, 13, 18, 21 | D25: 29.197 | E25: 0.7085714286 | F25: 1.14 | G25: 1.665714286 | H25: 2.555654626 | I25: 20.76912677 | J25: 8.779508709 | K25: 0 | L25: 20 | M25: 40 | N25: 65
B26: Pome / stone fruit (late) | C26: 2, 4, 9, 12, 13, 18, 21 | D26: 15.725 | E26: 0.7085714286 | F26: 1.14 | G26: 1.665714286 | H26: 2.555654626 | I26: 20.76912677 | J26: 8.779508709 | K26: 0 | L26: 20 | M26: 40 | N26: 65
B27: Potatoes | C27: 16, 18, 19 | D27: 2.759 | E27: 3.67 | F27: 15.58 | G27: 1.9 | H27: 10.26266667 | I27: 44 | J27: 25.60783333 | K27: 0 | L27: 15 | M27: 50 | N27: 70
B28: Soybeans | C28: 16, 6, 18 | D28: 2.759 | E28: 39.75 | F28: 33 | G28: 36.93 | H28: 0.9466666667 | I28: 3.489333333 | J28: 2.213333333 | K28: 0 | L28: 20 | M28: 50 | N28: 75
B29: Sugar beet | C29: 15, 3, 21 | D29: 2.759 | E29: 0.75 | F29: 8 | G29: 3.5 | H29: 35.881 | I29: 90.35033333 | J29: 60.74716667 | K29: 0 | L29: 20 | M29: 70 | N29: 75
B30: Sunflower | C30: 16 | D30: 2.759 | E30: 9 | F30: 16 | G30: 46 | H30: 0.743 | I30: 2.599333333 | J30: 2.26 | K30: 0 | L30: 20 | M30: 50 | N30: 75
B31: Tobacco | C31: 13 | D31: 2.759 | E31: 21 | F31: 184 | G31: 69 | H31: 1.383666667 | I31: 2.583666667 | J31: 1.963 | K31: 0 | L31: 20 | M31: 70 | N31: 75
B32: Vegetables, bulb | C32: 1, 13 | D32: 2.759 | E32: 1 | F32: 2.175 | G32: 3.995 | H32: 7.6879477 | I32: 29.54443837 | J32: 17.2950458 | K32: 0 | L32: 10 | M32: 25 | N32: 40
B33: Vegetables, fruiting | C33: 13, 18, 21 | D33: 2.759 | E33: 1.403333333 | F33: 2.4875 | G33: 3.215 | H33: 12.71914016 | I33: 234.0520741 | J33: 38.59363412 | K33: 0 | L33: 25 | M33: 50 | N33: 70
B34: Vegetables, leafy | C34: 11, 13, 21 | D34: 2.759 | E34: 1.2625 | F34: 3.5925 | G34: 4.6 | H34: 8.221122609 | I34: 38.81382558 | J34: 18.39480669 | K34: 0 | L34: 25 | M34: 40 | N34: 70
B35: Vegetables, root | C35: 21 | D35: 2.759 | E35: 0.45 | F35: 1.43 | G35: 2.4 | H35: 10.57777235 | I35: 51.01739631 | J35: 27.30399767 | K35: 0 | L35: 25 | M35: 50 | N35: 70
B36: Vines, early applications | C36: 21 | D36: 2.699 | E36: 1.27 | F36: 0.71 | G36: 0.7 | H36: 1.744133644 | I36: 14.35057725 | J36: 6.051454747 | K36: 0 | L36: 40 | M36: 50 | N36: 60
B37: Vines, late applications | C37: 21 | D37: 8.028 | E37: 1.27 | F37: 0.71 | G37: 0.7 | H37: 1.744133644 | I37: 14.35057725 | J37: 6.051454747 | K37: 0 | L37: 40 | M37: 50 | N37: 60
B38: Forest (aerial application) | C38: ***** | D38: 33.2 | E38: 0 | F38: 0 | G38: 0 | H38: 0 | I38: 0 | J38: 0 | K38: 0 | L38: 20 | M38: 50 | N38: 70
N39: 
B40: * Rautmann drift values, single application (Rautmann et al, 2001)
B41: ** Full list of all crop micronutrient concentration litarature refer to sheet "References_cropconc"
B42: *** Eurostat database on Crop statistics (average yield data 2012-'14)
B43: **** EFSA DegT50 guidance document (2014)
B44: ***** No crop offtake, considering long life span of forest trees
K46: Tool developed by ARCHE Consulting © 2017

Sheet SpERC details
B1: FERTILIZER ENVIRONMENTAL EXPOSURE (FEE) TOOL
B2: SPERC DETAILS
B4: Runoff scenario | C4: % runoff 30 days | D4: % runoff, incl. soil incorporation | F4: Vapour pressure | G4: Volatilization (%)
B5: SPERC 1: Outdoor use - direct application of solid fertilizers to soil; surface spreading | C5: =IF(100-100*EXP(-Ksoil_water_runoff*30)<5,100-100*EXP(-Ksoil_water_runoff*30),5) -> 0.03854207782 | D5: =IF(100-100*EXP(-Ksoil_water_runoff_soil_incorp*30)<5,100-100*EXP(-Ksoil_water_runoff_soil_incorp*30),5) -> 0.008081233853 | F5: Default (inorganics) | G5: 0 | I5: Single
B6: SPERC 2: Outdoor use - direct application of solid or liquid fertilizers to soil; incorporation, placement, mixing, seed treatment, drip irrigation | C6: 0 | D6: 0 | F6: < 0.01 mPa | G6: 1 | I6: Multiple
B7: SPERC 3: Outdoor use - application of fertilizers by helicopter | C7: =IF(100-100*EXP(-Ksoil_water_runoff*30)<5,100-100*EXP(-Ksoil_water_runoff*30),5) -> 0.03854207782 | D7: =IF(100-100*EXP(-Ksoil_water_runoff_soil_incorp*30)<5,100-100*EXP(-Ksoil_water_runoff_soil_incorp*30),5) -> 0.008081233853 | F7: 0.01 - 0.1 mPa | G7: 10
B8: SPERC 4: Outdoor use - spray application of liquid fertilizers; soil surface spreading, sprinkler, pivot, foliar spray, slurry | C8: =IF(100-100*EXP(-Ksoil_water_runoff*30)<5,100-100*EXP(-Ksoil_water_runoff*30),5) -> 0.03854207782 | D8: =IF(100-100*EXP(-Ksoil_water_runoff_soil_incorp*30)<5,100-100*EXP(-Ksoil_water_runoff_soil_incorp*30),5) -> 0.008081233853 | F8: 0.1 - 1 mPa | G8: 20 | I8: 50
F9: 1 - 10 mPa | G9: 50 | I9: 75
F10: > 10 mPa | G10: 100 | I10: 90
I12: 60
I13: 80
I15: yes
I16: no
G19: Tool developed by ARCHE Consulting © 2017

Sheet Micro-nutrient endpoints (hidden)
B1: FERTILIZER ENVIRONMENTAL EXPOSURE (FEE) TOOL
B2: MICRO-NUTRIENT STANDARD PARAMETERS
B4: Micro-nutrient * | D4: Substance properties | J4: Exposure assessment (PEC regional) | N4: Effect assessment
D5: Molecular weight [g/mol] | E5: Solubility at 25°C [mg/L] ** | F5: Vapour pressure at 25°C [Pa] ** | G5: Henry coefficient [Pa*m3/mol] * | H5: Kpsoil [L/kg dw] | I5: Kp susp matter [L/kg dw] | J5: PEC soil [mg/kg dw] *** | K5: PEC freshwater [µg/L] | L5: PEC sediment [mg/kg dw] | M5: Added/total approach | N5: PNEC soil [mg/kg dw] | O5: PNEC freshwater [µg/L] | P5: PNEC sediment [mg/kg dw] ****
B6: Copper | C6: Cu | D6: 63.55 | E6: 100 | F6: 1e-06 | G6: 4e-06 | H6: 2120 | I6: 30246 | J6: 14 | K6: 2.9 | L6: 67.5 | M6: TOTAL | N6: 65 | O6: 7.8 | P6: 87
B7: Manganese | C7: Mn | D7: 54.94 | E7: 100 | F7: 1e-06 | G7: 4e-06 | H7: 1355 | I7: =POWER(10,4.45) -> 28183.82931 | J7: 0 | K7: 0 | L7: 0 | M7: ADDED | N7: 25.1 | O7: 12.8 | P7: 36.1
B8: Zinc | C8: Zn | D8: 65.38 | E8: 100 | F8: 1e-06 | G8: 4e-06 | H8: 158.5 | I8: 110000 | J8: 41.3 | K8: 3.4 | L8: 45 | M8: ADDED | N8: 107 | O8: 20.6 | P8: 235.6
B9: -> Other | D9: Provide manual input | E9: Provide manual input | F9: Provide manual input | G9: Provide manual input (or enter mol.weight, solubility and vapour pressure) | H9: Provide manual input for Kpsoil or Koc | I9: Provide manual input | J9: Provide manual input | K9: Provide manual input | L9: Provide manual input | N9: Provide manual input | O9: Provide manual input | P9: Provide manual input
B10: * Unless otherwise stated, micro-nutrient properties are based on information from the REACH dissemination website for relevant substances (see table below); please check carefully for consistency with most recent dossier information
B11: ** Default values for inorganics from R7-13-2 Information requirements, metals
B12: *** PEC soil regional selected from GEMAS dataset
B13: **** The PNEC sediment for MnSO4 has been calculated according to the equilibrium approach based on the PNEC water from MnSO4 (expressed as µg Mn/L), a Kd value for Mn adsorption to suspended matter (from Vesely et al., 2001) and an additional assessment factor 10.
B18: Name | C18: Formula | D18: CAS nr | E18: EC nr
B19: Copper
B20: Copper chloride | C20: CuCl | D20: 7758-89-6 | E20: 231-842-9
B21: Copper di(acetate) | C21: Cu(CH3COO)2 | D21: 142-71-2, 6046-93-1 | E21: 205-553-3
B22: Copper dichloride | C22: CuCl2 | D22: 7447-39-4, 10125-13-0 | E22: 231-210-2
B23: Copper dihydroxide | C23: Cu(OH)2 | D23: 20427-59-2 | E23: 243-815-9
B24: Copper dinitrate | C24: Cu(NO3)2 | D24: 3251-23-8, 10031-43-3 | E24: 221-838-5
B25: Copper oxide | C25: CuO | D25: 1317-38-0 | E25: 215-269-1
B26: Copper sulphate | C26: CuSO4 | D26: 7758-98-7, 7758-99-8 | E26: 231-847-6
B27: Copper(2+) ion hydroxide nitrate | C27: Cu(OH)(NO3) | D27: 12158-75-7 | E27: 439-590-3
B28: Copper(II) carbonate--copper(II) hydroxide (1:1) | C28: CuCO3-Cu(OH)2 | D28: 12069-69-1 | E28: 235-113-6
B29: Dicopper oxide | C29: Cu2O | D29: 1317-39-1 | E29: 215-270-7
B30: Dicopper chloride trihydroxide | C30: Cu2Cl(OH)3 | D30: 1332-40-7, 1332-65-6 | E30: 215-572-9
B31: Dicopper hydroxide phosphate | C31: Cu2(OH)(PO4) | D31: 12158-74-6 | E31: 235-285-2
B32: Zinc
B33: Zinc bis(dihydrogen phosphate) | C33: Zn(H2PO4)2 | D33: 13598-37-3 | E33: 237-067-2
B34: Trizinc bis(orthophosphate) | C34: Zn3(PO4)2 | D34: 7779-90-0 | E34: 231-944-3
B35: Zinc borate | C35: ZnHBO3 | D35: 1332-07-6 | E35: 215-566-6
B36: Zinc chloride | C36: ZnCl2 | D36: 7646-85-7 | E36: 231-592-0
B37: Zinc hydroxide | C37: Zn(OH)2 | D37: 20427-58-1 | E37: 243-814-3
B38: Zinc nitrate | C38: Zn(NO3)2 | D38: 7779-88-6, 10196-18-6 | E38: 231-943-8
B39: Zinc oxide | C39: ZnO | D39: 1314-13-2, 7440-66-6 | E39: 215-222-5
B40: Zinc sulphate | C40: ZnSO4 | D40: 7446-19-7, 7446-20-0, 7733-02-0 | E40: 231-793-3
B41: Ammonium zinc chloride | C41: Zn(NH4)2Cl4 | D41: 52628-25-8 | E41: 258-054-8
B42: Carbonic acid, zinc salt, basic | C42: Zn(x/2+y).(OH)x.(CO3)y | D42: 51839-25-9 | E42: 257-467-0
B43: Zinc carbonate | C43: ZnCO3 | D43: 3486-35-9 | E43: 222-477-6
B44: Manganese
B45: Manganese sulphate | C45: MnSO4 | D45: 7785-87-7, 10034-96-5 | E45: 232-089-9
M47: Tool developed by ARCHE Consulting © 2017

Sheet Biodegradation
C1: FERTILIZER ENVIRONMENTAL EXPOSURE (FEE) TOOL
C2: BIODEGRADATION IN SOIL AND SURFACE WATER
C4: Half-lives (days) based on results from standardised biodegradation screening tests *
B6: SOIL | C6: Kpsoil (L/kg) | D6: Not biodegradable | E6: Readily biodegradable | F6: Readily biodegradable, failing 10-d window | G6: Inherently biodegradable
C7: Kp ≤ 100 | D7: 1000000 | E7: 30 | F7: 90 | G7: 300
C8: Kp 100 - 1000 | D8: 1000000 | E8: 300 | F8: 900 | G8: 3000
C9: Kp 1000 - 10000 | D9: 1000000 | E9: 3000 | F9: 9000 | G9: 30000
C10: Kp 10000 - 100000 | D10: 1000000 | E10: 30000 | F10: 90000 | G10: 300000
C11: SURFACE WATER | D11: 1000000 | E11: 15 | F11: 50 | G11: 150
C13: * Table adapted from REACH guidance R.16, Table R.16-12 (soil) and Table R.16-11 (surface water)
G18: Tool developed by ARCHE Consulting © 2017

Sheet References_cropconc
A1: Reference # | B1: Author(s) | C1: Year | D1: Title | E1: Journal/Book/Website | F1: Publisher
A2: 1 | B2: Andrioli, F.F. et al. | C2: 2008 | D2: Curve of growth and uptake for the garlic crop under field conditions | E2: Scientia Agraria 9(3): 385-393; http://revistas.ufpr.br/agraria/article/view/11538
A3: 2 | B3: Aydinalp, C. & Marinova, S. | C3: 2012 | D3: Concentration of Cu and Zn in some fruits and vegetables grown in Northwestern Turkey | E3: Bulgarian Journal of Agricultural Science 18(5): 749-751; http://www.agrojournal.org/18/05-15-12.pdf
A4: 3 | B4: Beiss, U. | C4: 1978 | D4: Sugar Beet - Nutritional Summary | E4: http://www.yara.co.uk/crop-nutrition/crops/sugarbeet/key-facts/sugar-beet-nutritional-summary/ | F4: Yara, United Kingdom
A5: 4 | B5: Bozkurt, M.A. et al. | C5: 2010 | D5: The Use of Sewage Sludge as an Organic Matter Source in Apple Trees | E5: Polish Journal of Environmental Studies 19(2): 267-274; http://www.pjoes.com/pdf/19.2/267-274.pdf
A6: 5 | B6: Cadenas Caro, F.I. | C6: 2013 | D6: Effect of different crop loads on mineral element distribution in different organs of the olive tree at harvest | E6: pp. 64; http://repositorio.uchile.cl/handle/2250/116066 | F6: Universidad de Chile, Facultad de Ciencias Agronomicas Escuela de Pregrado, Chile
A7: 6 | B7: Ferguson, R.B. et al. | C7: 2006 | D7: G87-859 Fertilizer Recommendations for Soybean (Revised August 2006) | E7: Historical Materials from University of Nebraska-Lincoln Extension, paper 1714 http://digitalcommons.unl.edu/cgi/viewcontent.cgi?article=2712&context=extensionhist | F7: University of Nebraska, Lincoln, United States
A8: 7 | B8: Heard, J. & Hay, D. | C8: 2006 | D8: Nutrient Content, Uptake Pattern and Carbon:Nitrogen Ratios of Prairie Crops | E8: Proceedings of the 7th Annual Manitoba Agronomists Conference. http://umanitoba.ca/faculties/afs/MAC_proceedings/proceedings/2006/heard_hay_nutrient_uptake.pdf | F8: University of Manitoba, Canada
A9: 8 | B9: Labanauskas, C.K. & Handy, M.F. | C9: 1972 | D9: Nutrient removal by Valencia orange fruit from citrus orchards in California | E9: California Agriculture, Dec 1972; https://ucanr.edu/repositoryfiles/ca2612p3-63995.pdf | F9: University of California, Division of Agricultural Sciences, United States
A10: 9 | B10: Lehnert, R. | C10: 2010 | D10: Nutrient needs by apple trees | E10: http://www.goodfruit.com/nutrient-needs-by-apple-trees/ | F10: Washington State Fruit Commission, United States
A11: 10 | B11: Mattos Jr., D. et al. | C11: 2003 | D11: Nutrient content of biomass components of Hamlin sweet orange trees | E11: Scientia Agricola 60(1): 155-160; http://www.scielo.br/pdf/sa/v60n1/14557.pdf
A12: 11 | B12: Mitchell, C.C. | C12: 2011 | D12: Nutrient Removal by Alabama Crops | E12: ANR-0449; http://www.aces.edu/pubs/docs/A/ANR-0449/ANR-0449.pdf | F12: Alabama Cooperative Extension System, Alabama A&M University and Auburn University, United States
A13: 12 | B13: Nour, V. et al. | C13: 2010 | D13: Compositional Characteristics of Fruits of several Apple (Malus domestica Borkh.) Cultivars | E13: Notulae Botanicae Horti Agrobotanici Cluj-Napoca 38(3): 228-233; http://www.notulaebotanicae.ro/index.php/nbha/article/view/4762/5097
A14: 13 | B14: Osmond, D.L. & Kang, J. | C14: 2008 | D14: Soil facts, Nutrient Removal by Crops in North Carolina | E14: https://content.ces.ncsu.edu/nutrient-removal-by-crops-in-north-carolina | F14: North Carolina State University and North Carolina Cooperative Extension Service, United States
A15: 14 | B15: Portner, J., Roßbauer, G., Bauer, M. | C15: 2006 | D15: Nährstoffaufnahme des Hopfens (in German) | E15: Hopfen-Rundschau 5: 116-120; https://www.lfl.bayern.de/mam/cms07/ipz/dateien/artikelnaehrstoffaufnahme.pdf | F15: Bayerische Landesanstalt für Landwirtschaft, Germany
A16: 15 | B16: Quade, J. (Ed) | C16: 1993 | D16: Faustzahlen für Landwirtschaft und Gartenbau (in German) | E16: Re-edition 12, 618 pp | F16: Hydro Agri Dülmen GmbH, Germany
A17: 16 | B17: Wichmann, W. (Ed) | C17: 1992 | D17: IFA World Fertilizer Use Manual | E17: 632 pp; http://www.fertilizer.org/imis20/images/Library_Downloads/1992_ifa_world_fertilizer_use_manual.pdf?WebsiteKey=411e9724-4bda-422f-abfc-8152ed74f306&=404%3bhttp%3a%2f%2fwww.fertilizer.org%3a80%2fen%2fimages%2fLibrary_Downloads%2f1992_ifa_world_fertilizer_use_manual.pdf | F17: International Fertilizer Industry Association (IFA), France
A18: 17 | B18: Yara International | C18: 2017 | D18: Unpublished average nutrient removal data based on lab analyses (pers. comm.) | F18: Yara International, Research and Development, Germany
A19: 18 | B19: Yara International | C19: 2015 | D19: Unpublished average nutrient removal data based on lab analyses (pers. comm.) | F19: Yara International, Research and Development, Germany
A20: 19 | B20: Yara International | C20: 2013 | D20: Unpublished average nutrient removal data based on lab analyses (pers. comm.) | F20: Yara International, Research and Development, Germany
A21: 20 | B21: Yara International | C21: 2010 | D21: Unpublished average nutrient removal data based on lab analyses (pers. comm.) | F21: Yara International, Research and Development, Germany
A22: 21 | B22: USDA | C22: 2009 | D22: United States Department of Agriculture, National Nutrient Database for Standard Reference 28 | E22: https://ndb.nal.usda.gov/ndb/nutrients/index | F22: Agricultural Research Service, United States
